Date Of Transaction,Department,Beneficiary,Amount,Purpose,Supplier - Merchant Category Code Description
27/11/2017,Environment & Community Services,Cpc,29.29,Credit Card Charges,Purchase Cpc
27/11/2017,Children Adult & Health,Capitalhairandbeauty.C,66.11,Credit Card Charges,Purchase Capitalhairandbeauty.C
27/11/2017,Children Adults & Health,Macdonald Hotels Manch,117.00,Supplies and Services,Purchase Macdonald Hotels Manch
28/11/2017,Children Adult & Health,John Sheppard Butchers,-188.16,School dinners,Credit Voucher John Sheppard Butchers
28/11/2017,Children Adult & Health,John Sheppard Butchers,-180.30,School dinners,Credit Voucher John Sheppard Butchers
28/11/2017,Children Adult & Health,John Sheppard Butchers,-132.00,School dinners,Credit Voucher John Sheppard Butchers
28/11/2017,Children Adult & Health,John Sheppard Butchers,-128.44,School dinners,Credit Voucher John Sheppard Butchers
28/11/2017,Environment & Community Services,Amazon Svcs Eu-Uk Amazon.,-112.00,Supplies and Services,Credit Voucher Amazon Svcs Eu-Uk Amazon.
28/11/2017,Children Adult & Health,British Heart Foundati,-100.00,Supplies and Services,Credit Voucher British Heart Foundati
28/11/2017,Children Adult & Health,John Sheppard Butchers,-89.31,School dinners,Credit Voucher John Sheppard Butchers
28/11/2017,Children Adult & Health,John Sheppard Butchers,-61.64,School dinners,Credit Voucher John Sheppard Butchers
28/11/2017,Children Adult & Health,John Sheppard Butchers,-15.50,School dinners,Credit Voucher John Sheppard Butchers
28/11/2017,Children Adult & Health,Brake Bros Ltd,-10.34,School dinners,Credit Voucher Brake Bros Ltd
28/11/2017,Environment & Community Services,Amazon UK Marketplace,1.75,Credit Card Charges,Purchase Amazon UK Marketplace
28/11/2017,Children Adult & Health,Card Factory,3.26,Supplies and Services,Purchase Card Factory
28/11/2017,Chief Executive & Corporate Resources,Banner Group Ltd,3.26,Stationery,Purchase Banner Group Ltd
28/11/2017,Environment & Community Services,Screwfix Direct,3.98,Street Care - Buildings Maintenance,Purchase Screwfix Direct
28/11/2017,Children Adult & Health,John Sheppard Butchers,6.51,School dinners,Purchase John Sheppard Butchers
28/11/2017,Children Adult & Health,Br Restaurant,7.30,Project Funding,Purchase Br Restaurant
28/11/2017,Children Adult & Health,John Sheppard Butchers,8.45,School dinners,Purchase John Sheppard Butchers
28/11/2017,Children Adult & Health,Wilko Retail Limit,8.50,Supplies and Services,Purchase Wilko Retail Limit
28/11/2017,Chief Executive & Corporate Resources,Banner Group Ltd,9.78,Stationery,Purchase Banner Group Ltd
28/11/2017,Children Adult & Health,W M Morrisons Plc,12.10,Project Funding,Purchase W M Morrisons Plc
28/11/2017,Chief Executive & Corporate Resources,Banner Group Ltd,10.41,Stationery,Purchase Banner Group Ltd
28/11/2017,Environment & Community Services,Screwfix Direct,12.99,Street Care - Buildings Maintenance,Purchase Screwfix Direct
28/11/2017,Children Adult & Health,John Sheppard Butchers,13.63,School dinners,Purchase John Sheppard Butchers
28/11/2017,Chief Executive & Corporate Resources,Www.Viking-Direct.Co.U,14.87,Supplies and Services,Purchase Www.Viking-Direct.Co.U
28/11/2017,Children Adult & Health,Cross Country Trains,22.50,0,Purchase Cross Country Trains
28/11/2017,Chief Executive & Corporate Resources,Banner Group Ltd,18.90,Stationery,Purchase Banner Group Ltd
28/11/2017,Children Adult & Health,Martin Mccolls,23.80,0,Purchase Martin McColls
28/11/2017,Children Adult & Health,John Sheppard Butchers,26.79,School dinners,Purchase John Sheppard Butchers
28/11/2017,Children Adult & Health,Cross Country Trains,26.80,Supplies and Services,Purchase Cross Country Trains
28/11/2017,Children Adult & Health,Trainline,28.15,Bus & Rail Passes,Purchase Trainline
28/11/2017,Children Adult & Health,John Sheppard Butchers,29.54,School dinners,Purchase John Sheppard Butchers
28/11/2017,Children Adult & Health,John Sheppard Butchers,30.17,School dinners,Purchase John Sheppard Butchers
28/11/2017,Children Adult & Health,John Sheppard Butchers,30.17,School dinners,Purchase John Sheppard Butchers
28/11/2017,Children Adult & Health,John Sheppard Butchers,30.23,School dinners,Purchase John Sheppard Butchers
28/11/2017,Children Adult & Health,John Sheppard Butchers,32.74,School dinners,Purchase John Sheppard Butchers
28/11/2017,Children Adult & Health,Asda Superstore,33.71,0,Purchase Asda Superstore
28/11/2017,Children Adult & Health,John Sheppard Butchers,34.01,School dinners,Purchase John Sheppard Butchers
28/11/2017,Chief Executive & Corporate Resources,Banner Group Ltd,30.24,Stationery,Purchase Banner Group Ltd
28/11/2017,Children Adult & Health,Brake Bros Ltd,37.39,School dinners,Purchase Brake Bros Ltd
28/11/2017,Children Adult & Health,John Sheppard Butchers,38.15,School dinners,Purchase John Sheppard Butchers
28/11/2017,Children Adult & Health,John Sheppard Butchers,38.15,School dinners,Purchase John Sheppard Butchers
28/11/2017,Children Adult & Health,John Sheppard Butchers,39.73,School dinners,Purchase John Sheppard Butchers
28/11/2017,Environment & Community Services,Screwfix Direct,41.18,Street Care - Buildings Maintenance,Purchase Screwfix Direct
28/11/2017,Children Adult & Health,John Sheppard Butchers,43.71,School dinners,Purchase John Sheppard Butchers
28/11/2017,Children Adult & Health,Amazon UK Marketplace,43.79,Supplies and Services,Purchase Amazon UK Marketplace
28/11/2017,Children Adult & Health,Asda Superstore,44.00,0,Purchase Asda Superstore
28/11/2017,Children Adult & Health,John Sheppard Butchers,44.09,School dinners,Purchase John Sheppard Butchers
28/11/2017,Children Adult & Health,John Sheppard Butchers,44.64,School dinners,Purchase John Sheppard Butchers
28/11/2017,Children Adult & Health,John Sheppard Butchers,48.14,School dinners,Purchase John Sheppard Butchers
28/11/2017,Children Adult & Health,Brake Bros Ltd,49.55,School dinners,Purchase Brake Bros Ltd
28/11/2017,Children Adult & Health,John Sheppard Butchers,49.84,School dinners,Purchase John Sheppard Butchers
28/11/2017,Children Adult & Health,John Sheppard Butchers,52.80,School dinners,Purchase John Sheppard Butchers
28/11/2017,Children Adult & Health,John Sheppard Butchers,56.24,School dinners,Purchase John Sheppard Butchers
28/11/2017,Children Adult & Health,John Sheppard Butchers,60.33,School dinners,Purchase John Sheppard Butchers
28/11/2017,Children Adults & Health,Ms-2 Stores,60.50,0,Purchase Ms-2 Stores
28/11/2017,Chief Executive & Corporate Resources,Paypal,60.64,0,Purchase Paypal
28/11/2017,Environment & Community Services,Www.Maplin.Co.Uk,65.96,Supplies and Services,Purchase Www.Maplin.Co.Uk
28/11/2017,Children Adult & Health,John Sheppard Butchers,66.05,School dinners,Purchase John Sheppard Butchers
28/11/2017,Children Adult & Health,Brake Bros Ltd,67.11,School dinners,Purchase Brake Bros Ltd
28/11/2017,Children Adult & Health,Brake Bros Ltd,74.22,School dinners,Purchase Brake Bros Ltd
28/11/2017,Children Adult & Health,John Sheppard Butchers,76.08,School dinners,Purchase John Sheppard Butchers
28/11/2017,Children Adult & Health,Wilko Retail Limit,78.05,Supplies and Services,Purchase Wilko Retail Limit
28/11/2017,Children Adult & Health,British Heart Foundati,80.00,Supplies and Services,Purchase British Heart Foundati
28/11/2017,Children Adult & Health,John Sheppard Butchers,81.33,School dinners,Purchase John Sheppard Butchers
28/11/2017,Children Adult & Health,Brake Bros Ltd,95.79,School dinners,Purchase Brake Bros Ltd
28/11/2017,Children Adult & Health,Brake Bros Ltd,96.56,School dinners,Purchase Brake Bros Ltd
28/11/2017,Children Adult & Health,Brake Bros Ltd,94.98,School dinners,Purchase Brake Bros Ltd
28/11/2017,Children Adult & Health,Screwfix Direct,103.46,Credit Card Charges,Purchase Screwfix Direct
28/11/2017,Children Adult & Health,John Sheppard Butchers,103.99,School dinners,Purchase John Sheppard Butchers
28/11/2017,Children Adult & Health,John Sheppard Butchers,128.79,School dinners,Purchase John Sheppard Butchers
28/11/2017,Chief Executive & Corporate Resources,Wessex Water Servi,131.00,Supplies and Services,Purchase Wessex Water Servi
28/11/2017,Chief Executive & Corporate Resources,Banner Group Ltd,111.51,Stationery,Purchase Banner Group Ltd
28/11/2017,Children Adult & Health,Brake Bros Ltd,153.14,School dinners,Purchase Brake Bros Ltd
28/11/2017,Environment & Community Services,Cieh Limited,160.00,0,Purchase Cieh Limited
28/11/2017,Children Adult & Health,Brake Bros Ltd,159.26,School dinners,Purchase Brake Bros Ltd
28/11/2017,Chief Executive & Corporate Resources,Www.Slingsby.Com,190.80,Credit Card Charges,Purchase Www.Slingsby.Com
28/11/2017,Children Adult & Health,Amazon UK Retail,193.95,Supplies and Services,Purchase Amazon UK Retail
28/11/2017,Children Adult & Health,Chris Davies Estate Ag,201.24,Prop.Serv. General Repairs,Purchase Chris Davies Estate Ag
28/11/2017,Children Adult & Health,Brake Bros Ltd,194.09,School dinners,Purchase Brake Bros Ltd
28/11/2017,Children Adult & Health,Brake Bros Ltd,210.55,School dinners,Purchase Brake Bros Ltd
28/11/2017,Children Adult & Health,John Sheppard Butchers,222.56,School dinners,Purchase John Sheppard Butchers
28/11/2017,Children Adults & Health,Cross Country Trains,225.80,0,Purchase Cross Country Trains
28/11/2017,Children Adult & Health,Brake Bros Ltd,231.77,School dinners,Purchase Brake Bros Ltd
28/11/2017,Children Adult & Health,John Sheppard Butchers,274.24,School dinners,Purchase John Sheppard Butchers
28/11/2017,Children Adult & Health,Booker Limited Bristol,293.11,Credit Card Charges,Purchase Booker Limited Bristol
28/11/2017,Children Adult & Health,Brake Bros Ltd,336.49,School dinners,Purchase Brake Bros Ltd
28/11/2017,Environment & Community Services,Wp-Hemming Group L,357.60,Supplies and Services,Purchase Wp-Hemming Group L
28/11/2017,Children Adult & Health,Bgrp Ltd,379.90,Credit Card Charges,Purchase Bgrp Ltd
28/11/2017,Environment & Community Services,Rics Com Gbp Cybs,390.00,Supplies and Services,Purchase Rics Com Gbp Cybs
28/11/2017,Children Adult & Health,Www.Annarbor.Co.Uk,430.80,Supplies and Services,Purchase Www.Annarbor.Co.Uk
29/11/2017,Environment & Community Services,Eb *the Role Of Sport,-117.60,Supplies and Services,Credit Voucher Eb *the Role Of Sport
29/11/2017,Children Adult & Health,Amazon Svcs Eu-Uk Amazon.,-71.85,Credit Card Charges,Credit Voucher Amazon Svcs Eu-Uk Amazon.
29/11/2017,Children Adult & Health,John Sheppard Butchers,-47.76,School dinners,Credit Voucher John Sheppard Butchers
29/11/2017,Children Adult & Health,Asda Superstore,-1.00,Supplies and Services,Credit Voucher Asda Superstore
29/11/2017,Chief Executive & Corporate Resources,Banner Group Ltd,1.89,Stationery,Purchase Banner Group Ltd
29/11/2017,Chief Executive & Corporate Resources,Banner Group Ltd,1.89,Stationery,Purchase Banner Group Ltd
29/11/2017,Chief Executive & Corporate Resources,Banner Group Ltd,1.89,Stationery,Purchase Banner Group Ltd
29/11/2017,Chief Executive & Corporate Resources,Banner Group Ltd,3.06,Stationery,Purchase Banner Group Ltd
29/11/2017,Chief Executive & Corporate Resources,Banner Group Ltd,3.26,Stationery,Purchase Banner Group Ltd
29/11/2017,Environment & Community Services,Tp Bristol,3.37,0,Purchase Tp Bristol
29/11/2017,Children Adult & Health,Rs Components,3.86,Supplies and Services,Purchase Rs Components
29/11/2017,Children Adult & Health,John Sheppard Butchers,7.90,School dinners,Purchase John Sheppard Butchers
29/11/2017,Chief Executive & Corporate Resources,Banner Group Ltd,7.56,Stationery,Purchase Banner Group Ltd
29/11/2017,Chief Executive & Corporate Resources,Banner Group Ltd,7.78,Stationery,Purchase Banner Group Ltd
29/11/2017,Children Adult & Health,John Sheppard Butchers,9.77,School dinners,Purchase John Sheppard Butchers
29/11/2017,Children Adult & Health,John Sheppard Butchers,9.81,School dinners,Purchase John Sheppard Butchers
29/11/2017,Environment & Community Services,Screwfix Direct Lt,10.61,Supplies and Services,Purchase Screwfix Direct Lt
29/11/2017,Environment & Community Services,Tp Yate,10.03,0,Purchase Tp Yate
29/11/2017,Children Adult & Health,Caffe Nero 658 Bristol Ga,12.40,Supplies and Services,Purchase Caffe Nero 658 Bristol Ga
29/11/2017,Environment & Community Services,Screwfix Direct,14.16,Street Care - Buildings Maintenance,Purchase Screwfix Direct
29/11/2017,Environment & Community Services,Ncp Limited,16.50,Credit Card Charges,Purchase Ncp Limited
29/11/2017,Environment & Community Services,Amazon UK Marketplace,17.04,Supplies and Services,Purchase Amazon UK Marketplace
29/11/2017,Children Adult & Health,John Sheppard Butchers,17.51,School dinners,Purchase John Sheppard Butchers
29/11/2017,Children Adult & Health,John Sheppard Butchers,18.17,School dinners,Purchase John Sheppard Butchers
29/11/2017,Chief Executive & Corporate Resources,B & Q 1280,15.74,Supplies and Services,Purchase B & Q 1280
29/11/2017,Children Adult & Health,Lidl Uk,20.32,Supplies and Services,Purchase Lidl Uk
29/11/2017,Children Adult & Health,Tesco Stores 6420,21.10,Supplies and Services,Purchase Tesco Stores 6420
29/11/2017,Children Adult & Health,Sainsburys S/mkts,23.90,Supplies and Services,Purchase Sainsburys S/Mkts
29/11/2017,Children Adult & Health,John Sheppard Butchers,26.53,School dinners,Purchase John Sheppard Butchers
29/11/2017,Children Adult & Health,Amazon.Co.Uk,27.00,Credit Card Charges,Purchase Amazon.Co.Uk
29/11/2017,Children Adult & Health,John Sheppard Butchers,31.33,School dinners,Purchase John Sheppard Butchers
29/11/2017,Children Adult & Health,Brake Bros Ltd,32.67,School dinners,Purchase Brake Bros Ltd
29/11/2017,Chief Executive & Corporate Resources,Banner Group Ltd,28.48,Stationery,Purchase Banner Group Ltd
29/11/2017,Chief Executive & Corporate Resources,Banner Group Ltd,29.30,Stationery,Purchase Banner Group Ltd
29/11/2017,Children Adult & Health,John Sheppard Butchers,35.24,School dinners,Purchase John Sheppard Butchers
29/11/2017,Environment & Community Services,Asda Home Shopping,37.53,Credit Card Charges,Purchase Asda Home Shopping
29/11/2017,Children Adult & Health,John Sheppard Butchers,52.07,School dinners,Purchase John Sheppard Butchers
29/11/2017,Environment & Community Services,B & Q 1081,45.01,Street Care - Buildings Maintenance,Purchase B & Q 1081
29/11/2017,Children Adult & Health,John Sheppard Butchers,54.13,School dinners,Purchase John Sheppard Butchers
29/11/2017,Environment & Community Services,Howdens - Filton De47,45.70,Street Care - Buildings Maintenance,Purchase Howdens - Filton De47
29/11/2017,Environment & Community Services,Screwfix Direct,57.12,Street Care - Buildings Maintenance,Purchase Screwfix Direct
29/11/2017,Environment & Community Services,Cilip,60.00,0,Purchase Cilip
29/11/2017,Children Adult & Health,John Sheppard Butchers,61.13,School dinners,Purchase John Sheppard Butchers
29/11/2017,Children Adult & Health,J W Pepper And Son Inc,61.77,Supplies and Services,Purchase (USD 80.00) J W Pepper And Son Inc
29/11/2017,Children Adult & Health,John Sheppard Butchers,65.54,School dinners,Purchase John Sheppard Butchers
29/11/2017,Children Adult & Health,Central Convenience Stor,66.00,Supplies and Services,Purchase Central Convenience Stor
29/11/2017,Children Adult & Health,John Sheppard Butchers,70.07,School dinners,Purchase John Sheppard Butchers
29/11/2017,Environment & Community Services,Ezi Klamp Systems Ltd,71.22,0,Purchase Ezi Klamp Systems Ltd
29/11/2017,Children Adult & Health,Asda Superstore,71.58,Supplies and Services,Purchase Asda Superstore
29/11/2017,Children Adult & Health,Www.Cgpbooks.Co.Uk,77.00,Credit Card Charges,Purchase Www.Cgpbooks.Co.Uk
29/11/2017,Children Adult & Health,John Sheppard Butchers,77.05,School dinners,Purchase John Sheppard Butchers
29/11/2017,Children Adult & Health,John Sheppard Butchers,81.69,School dinners,Purchase John Sheppard Butchers
29/11/2017,Children Adult & Health,John Sheppard Butchers,82.66,School dinners,Purchase John Sheppard Butchers
29/11/2017,Children Adult & Health,Brake Bros Ltd,80.55,School dinners,Purchase Brake Bros Ltd
29/11/2017,Children Adult & Health,Brake Bros Ltd,85.19,School dinners,Purchase Brake Bros Ltd
29/11/2017,Children Adult & Health,Martin Mccolls,86.40,Supplies and Services,Purchase Martin McColls
29/11/2017,Children Adult & Health,Martin Mccolls,86.40,Supplies and Services,Purchase Martin McColls
29/11/2017,Children Adult & Health,Martin Mccolls,86.40,Supplies and Services,Purchase Martin McColls
29/11/2017,Children Adult & Health,John Sheppard Butchers,87.01,School dinners,Purchase John Sheppard Butchers
29/11/2017,Children Adult & Health,John Sheppard Butchers,87.37,School dinners,Purchase John Sheppard Butchers
29/11/2017,Children Adult & Health,Www.Garden4less.Co.Uk,92.70,Credit Card Charges,Purchase Www.Garden4less.Co.Uk
29/11/2017,Children Adult & Health,Brake Bros Ltd,90.91,School dinners,Purchase Brake Bros Ltd
29/11/2017,Children Adult & Health,Amazon.Co.Uk,99.95,Credit Card Charges,Purchase Amazon.Co.Uk
29/11/2017,Children Adult & Health,Amazon UK Retail,102.49,Supplies and Services,Purchase Amazon UK Retail
29/11/2017,Children Adult & Health,Brake Bros Ltd,101.70,School dinners,Purchase Brake Bros Ltd
29/11/2017,Children Adult & Health,Brake Bros Ltd,107.34,School dinners,Purchase Brake Bros Ltd
29/11/2017,Children Adult & Health,Fox Inn,115.65,Credit Card Charges,Purchase Fox Inn
29/11/2017,Environment & Community Services,Www.Cips.Org,126.48,0,Purchase Www.Cips.Org
29/11/2017,Children Adult & Health,Brake Bros Ltd,132.24,School dinners,Purchase Brake Bros Ltd
29/11/2017,Children Adult & Health,Brake Bros Ltd,154.10,School dinners,Purchase Brake Bros Ltd
29/11/2017,Children Adult & Health,Bristol And Avon Waste Ma,162.00,Supplies and Services,Purchase Bristol And Avon Waste Ma
29/11/2017,Children Adult & Health,Brake Bros Ltd,166.67,School dinners,Purchase Brake Bros Ltd
29/11/2017,Children Adult & Health,Brake Bros Ltd,168.16,School dinners,Purchase Brake Bros Ltd
29/11/2017,Children Adult & Health,Brake Bros Ltd,174.63,School dinners,Purchase Brake Bros Ltd
29/11/2017,Children Adult & Health,Www.Garden4less.Co.Uk,179.95,Credit Card Charges,Purchase Www.Garden4less.Co.Uk
29/11/2017,Children Adult & Health,Brake Bros Ltd,189.16,School dinners,Purchase Brake Bros Ltd
29/11/2017,Children Adult & Health,Asda Superstore,192.96,0,Purchase Asda Superstore
29/11/2017,Children Adult & Health,Brake Bros Ltd,198.23,School dinners,Purchase Brake Bros Ltd
29/11/2017,Children Adult & Health,Trainline,204.00,Supplies and Services,Purchase Trainline
29/11/2017,Chief Executive & Corporate Resources,Trainline,211.60,Credit Card Charges,Purchase Trainline
29/11/2017,Children Adult & Health,Amazon UK Marketplace,212.00,Supplies and Services,Purchase Amazon UK Marketplace
29/11/2017,Children Adult & Health,Brake Bros Ltd,209.07,School dinners,Purchase Brake Bros Ltd
29/11/2017,Children Adult & Health,Brake Bros Ltd,221.18,School dinners,Purchase Brake Bros Ltd
29/11/2017,Children Adult & Health,Brake Bros Ltd,245.60,School dinners,Purchase Brake Bros Ltd
29/11/2017,Children Adult & Health,Brake Bros Ltd,287.26,School dinners,Purchase Brake Bros Ltd
29/11/2017,Children Adult & Health,Brake Bros Ltd,305.13,School dinners,Purchase Brake Bros Ltd
29/11/2017,Chief Executive & Corporate Resources,Screwfix Direct,323.16,Credit Card Charges,Purchase Screwfix Direct
29/11/2017,Children Adult & Health,Brake Bros Ltd,325.98,School dinners,Purchase Brake Bros Ltd
29/11/2017,Children Adult & Health,Brake Bros Ltd,383.26,School dinners,Purchase Brake Bros Ltd
29/11/2017,Children Adult & Health,The Carpet Barn,495.00,Supplies and Services,Purchase The Carpet Barn
29/11/2017,Environment & Community Services,Www.Thewaterfront.Co.U,538.80,0,Purchase Www.Thewaterfront.Co.U
30/11/2017,Children Adult & Health,Worldstores,-639.96,0,Credit Voucher Worldstores
30/11/2017,Chief Executive & Corporate Resources,Banner Group Ltd,1.63,Stationery,Purchase Banner Group Ltd
30/11/2017,Chief Executive & Corporate Resources,Banner Group Ltd,1.89,Stationery,Purchase Banner Group Ltd
30/11/2017,Environment & Community Services,Amazon.Co.Uk,2.98,Credit Card Charges,Purchase Amazon.Co.Uk
30/11/2017,Children Adult & Health,Gwr Bristol Tm To,3.90,Supplies and Services,Purchase Gwr Bristol Tm To
30/11/2017,Children Adult & Health,Highfield Garden W,5.69,Supplies and Services,Purchase Highfield Garden W
30/11/2017,Children Adults & Health,Coffee#1 Fishponds,6.30,supplies and Services,Purchase Coffee#1 Fishponds
30/11/2017,Children Adults & Health,McDonalds,7.98,supplies and Services,Purchase McDonalds
30/11/2017,Children Adult & Health,McDonalds,8.05,Supplies and Services,Purchase McDonalds
30/11/2017,Chief Executive & Corporate Resources,Banner Group Ltd,8.94,Stationery,Purchase Banner Group Ltd
30/11/2017,Chief Executive & Corporate Resources,Banner Group Ltd,10.14,Stationery,Purchase Banner Group Ltd
30/11/2017,Environment & Community Services,Post Office Counter,12.98,Credit Card Charges,Purchase Post Office Counter
30/11/2017,Children Adult & Health,Iceland,14.63,Supplies and Services,Purchase Iceland
30/11/2017,Children Adults & Health,Sainsburys S/mkts,16.95,supplies and Services,Purchase Sainsburys S/Mkts
30/11/2017,Environment & Community Services,Gwr Yate Sst,17.20,Credit Card Charges,Purchase Gwr Yate Sst
30/11/2017,Environment & Community Services,Amazon UK Marketplace,19.94,Supplies and Services,Purchase Amazon UK Marketplace
30/11/2017,Children Adult & Health,Amazon.Co.Uk,19.98,Credit Card Charges,Purchase Amazon.Co.Uk
30/11/2017,Children Adults & Health,Co-Op Group 160097,20.00,supplies and Services,Purchase Co-Op Group 160097
30/11/2017,Children Adult & Health,Nandos Newport,21.55,Supplies and Services,Purchase Nandos Newport
30/11/2017,Children Adult & Health,Www.Argos.Co.Uk,21.94,0,Purchase Www.Argos.Co.Uk
30/11/2017,Children Adult & Health,Amazon UK Retail Amazon.C,22.22,Credit Card Charges,Purchase Amazon UK Retail Amazon.C
30/11/2017,Environment & Community Services,B & Q 1022,19.39,0,Purchase B & Q 1022
30/11/2017,Environment & Community Services,Amazon UK Marketplace,23.76,Supplies and Services,Purchase Amazon UK Marketplace
30/11/2017,Environment & Community Services,Amazon UK Retail,25.54,Supplies and Services,Purchase Amazon UK Retail
30/11/2017,Children Adult & Health,Amazon.Co.Uk,27.95,Credit Card Charges,Purchase Amazon.Co.Uk
30/11/2017,Children Adult & Health,Tk Maxx,29.99,Supplies and Services,Purchase Tk Maxx
30/11/2017,Chief Executive & Corporate Resources,Facebk Z54qlda952,35.00,0,Purchase Facebk Z54qlda952
30/11/2017,Environment & Community Services,Amazon UK Marketplace,36.24,Supplies and Services,Purchase Amazon UK Marketplace
30/11/2017,Environment & Community Services,Cpc,38.24,0,Purchase Cpc
30/11/2017,Environment & Community Services,City Electrical Fa,32.54,Street Care - Buildings Maintenance,Purchase City Electrical Fa
30/11/2017,Children Adult & Health,Brake Bros Ltd,39.67,School dinners,Purchase Brake Bros Ltd
30/11/2017,Environment & Community Services,Screwfix Direct,41.27,Street Care - Buildings Maintenance,Purchase Screwfix Direct
30/11/2017,Children Adult & Health,Grangemoor Hotel,43.00,0,Purchase Grangemoor Hotel
30/11/2017,Children Adult & Health,Brake Bros Ltd,41.16,School dinners,Purchase Brake Bros Ltd
30/11/2017,Children Adult & Health,Asda Stores 4777,46.22,Supplies and Services,Purchase Asda Stores 4777
30/11/2017,Children Adult & Health,Brake Bros Ltd,41.44,School dinners,Purchase Brake Bros Ltd
30/11/2017,Children Adult & Health,Brake Bros Ltd,53.45,School dinners,Purchase Brake Bros Ltd
30/11/2017,Environment & Community Services,Www.Lynvale.Co.Uk,55.90,0,Purchase Www.Lynvale.Co.Uk
30/11/2017,Environment & Community Services,Amazon UK Marketplace,59.80,0,Purchase Amazon UK Marketplace
30/11/2017,Children Adult & Health,Amazon UK Retail,59.98,0,Purchase Amazon UK Retail
30/11/2017,Children Adult & Health,Amazon UK Retail,59.98,0,Purchase Amazon UK Retail
30/11/2017,Children Adult & Health,Paypal,60.89,Supplies and Services,Purchase Paypal
30/11/2017,Children Adult & Health,Premier Inn44025065,73.00,0,Purchase Premier Inn44025065
30/11/2017,Children Adult & Health,Brake Bros Ltd,70.59,School dinners,Purchase Brake Bros Ltd
30/11/2017,Children Adult & Health,Brake Bros Ltd,75.72,School dinners,Purchase Brake Bros Ltd
30/11/2017,Chief Executive & Corporate Resources,Best Western Lord Haldon,80.00,Supplies and Services,Purchase Best Western Lord Haldon
30/11/2017,Children Adult & Health,Brake Bros Ltd,82.98,School dinners,Purchase Brake Bros Ltd
30/11/2017,Children Adult & Health,Brake Bros Ltd,84.46,School dinners,Purchase Brake Bros Ltd
30/11/2017,Children Adult & Health,Brake Bros Ltd,85.36,School dinners,Purchase Brake Bros Ltd
30/11/2017,Children Adult & Health,Www.Studio-Music.C,93.90,Supplies and Services,Purchase Www.Studio-Music.C
30/11/2017,Chief Executive & Corporate Resources,Hammicks Legal Booksho,115.00,Credit Card Charges,Purchase Hammicks Legal Booksho
30/11/2017,Children Adult & Health,Brake Bros Ltd,111.82,School dinners,Purchase Brake Bros Ltd
30/11/2017,Environment & Community Services,Trainline,118.98,Credit Card Charges,Purchase Trainline
30/11/2017,Children Adult & Health,Brake Bros Ltd,127.59,School dinners,Purchase Brake Bros Ltd
30/11/2017,Children Adult & Health,Brake Bros Ltd,133.70,School dinners,Purchase Brake Bros Ltd
30/11/2017,Children Adult & Health,Brake Bros Ltd,142.30,School dinners,Purchase Brake Bros Ltd
30/11/2017,Children Adult & Health,Tvlicensing.Co.Uk,147.00,0,Purchase Tvlicensing.Co.Uk
30/11/2017,Children Adult & Health,Tvlicensing.Co.Uk,147.00,0,Purchase Tvlicensing.Co.Uk
30/11/2017,Children Adult & Health,Brake Bros Ltd,147.62,School dinners,Purchase Brake Bros Ltd
30/11/2017,Children Adult & Health,Brake Bros Ltd,144.45,School dinners,Purchase Brake Bros Ltd
30/11/2017,Children Adult & Health,Brake Bros Ltd,154.61,School dinners,Purchase Brake Bros Ltd
30/11/2017,Children Adult & Health,Brake Bros Ltd,145.39,School dinners,Purchase Brake Bros Ltd
30/11/2017,Children Adult & Health,Ikea Online,155.00,Supplies and Services,Purchase Ikea Online
30/11/2017,Children Adult & Health,Brake Bros Ltd,155.96,School dinners,Purchase Brake Bros Ltd
30/11/2017,Children Adult & Health,Brake Bros Ltd,168.25,School dinners,Purchase Brake Bros Ltd
30/11/2017,Children Adult & Health,Brake Bros Ltd,174.96,School dinners,Purchase Brake Bros Ltd
30/11/2017,Children Adult & Health,Brake Bros Ltd,174.72,School dinners,Purchase Brake Bros Ltd
30/11/2017,Children Adult & Health,Brake Bros Ltd,179.94,School dinners,Purchase Brake Bros Ltd
30/11/2017,Children Adult & Health,Brake Bros Ltd,181.57,School dinners,Purchase Brake Bros Ltd
30/11/2017,Children Adult & Health,Brake Bros Ltd,217.04,School dinners,Purchase Brake Bros Ltd
30/11/2017,Environment & Community Services,Trainline,229.81,Credit Card Charges,Purchase Trainline
30/11/2017,Children Adult & Health,Brake Bros Ltd,232.14,School dinners,Purchase Brake Bros Ltd
30/11/2017,Children Adult & Health,Brake Bros Ltd,253.74,School dinners,Purchase Brake Bros Ltd
30/11/2017,Children Adult & Health,Brake Bros Ltd,246.37,School dinners,Purchase Brake Bros Ltd
30/11/2017,Children Adult & Health,Screwfix Direct,260.48,Credit Card Charges,Purchase Screwfix Direct
30/11/2017,Children Adult & Health,Brake Bros Ltd,247.93,School dinners,Purchase Brake Bros Ltd
30/11/2017,Children Adult & Health,Brake Bros Ltd,263.53,School dinners,Purchase Brake Bros Ltd
30/11/2017,Children Adult & Health,Brake Bros Ltd,267.39,School dinners,Purchase Brake Bros Ltd
30/11/2017,Chief Executive & Corporate Resources,Banner Group Ltd,249.05,Stationery,Purchase Banner Group Ltd
30/11/2017,Environment & Community Services,Www.Handtec.Co.Uk,303.98,Credit Card Charges,Purchase Www.Handtec.Co.Uk
30/11/2017,Children Adult & Health,Brake Bros Ltd,359.40,School dinners,Purchase Brake Bros Ltd
30/11/2017,Chief Executive & Corporate Resources,Www.Neopost.Co.Uk,2040.00,Credit Card Charges,Purchase Www.Neopost.Co.Uk
01/12/2017,Environment & Community Services,Www.Johnlewis.Com,-30.95,Credit Card Charges,Credit Voucher Www.Johnlewis.Com
01/12/2017,Environment & Community Services,Www.Maplin.Co.Uk,-5.99,Supplies and Services,Credit Voucher Www.Maplin.Co.Uk
01/12/2017,Children Adult & Health,Central Convenience Stor,4.00,Supplies and Services,Purchase Central Convenience Stor
01/12/2017,Children Adult & Health,Central Convenience Stor,4.00,Supplies and Services,Purchase Central Convenience Stor
01/12/2017,Children Adult & Health,Central Convenience Stor,4.00,Supplies and Services,Purchase Central Convenience Stor
01/12/2017,Environment & Community Services,Amazon.Co.Uk,4.94,Credit Card Charges,Purchase Amazon.Co.Uk
01/12/2017,Children Adult & Health,Tesco Stores-2136,5.00,0,Purchase Tesco Stores-2136
01/12/2017,Children Adult & Health,Amazon UK Retail,6.18,Credit Card Charges,Purchase Amazon UK Retail
01/12/2017,Children Adult & Health,John Sheppard Butchers,6.46,School dinners,Purchase John Sheppard Butchers
01/12/2017,Children Adult & Health,Tesco Stores,7.94,Credit Card Charges,Purchase Tesco Stores
01/12/2017,Children Adult & Health,Amazon UK Prime Amzn.Co.U,7.99,Credit Card Charges,Purchase Amazon UK Prime Amzn.Co.U
01/12/2017,Children Adult & Health,John Sheppard Butchers,8.74,School dinners,Purchase John Sheppard Butchers
01/12/2017,Environment & Community Services,Screwfix Direct,9.57,Credit Card Charges,Purchase Screwfix Direct
01/12/2017,Environment & Community Services,Amazon UK Marketplace,11.35,Credit Card Charges,Purchase Amazon UK Marketplace
01/12/2017,Children Adult & Health,Burger King,13.68,Supplies and Services,Purchase Burger King
01/12/2017,Environment & Community Services,Tesco Stores 6420,14.00,Credit Card Charges,Purchase Tesco Stores 6420
01/12/2017,Children Adult & Health,Kn Office Supplies,14.69,Supplies and Services,Purchase Kn Office Supplies
01/12/2017,Children Adult & Health,John Sheppard Butchers,15.43,School dinners,Purchase John Sheppard Butchers
01/12/2017,Children Adult & Health,J D Sports 265,16.00,Supplies and Services,Purchase J D Sports 265
01/12/2017,Children Adult & Health,John Sheppard Butchers,16.04,School dinners,Purchase John Sheppard Butchers
01/12/2017,Environment & Community Services,Bristol Buildbase,14.79,Street Care - Buildings Maintenance,Purchase Bristol Buildbase
01/12/2017,Children Adult & Health,Amazon UK Retail,18.71,Credit Card Charges,Purchase Amazon UK Retail
01/12/2017,Children Adult & Health,Amazon.Co.Uk,19.17,Supplies and Services,Purchase Amazon.Co.Uk
01/12/2017,Children Adult & Health,British Heart Foundati,20.00,Supplies and Services,Purchase British Heart Foundati
01/12/2017,Children Adult & Health,Kn Office Supplies,20.87,Supplies and Services,Purchase Kn Office Supplies
01/12/2017,Children Adult & Health,Amazon.Co.Uk,21.98,Credit Card Charges,Purchase Amazon.Co.Uk
01/12/2017,Children Adult & Health,Amazon UK Marketplace,22.45,Credit Card Charges,Purchase Amazon UK Marketplace
01/12/2017,Children Adult & Health,Amazon UK Marketplace,22.99,Supplies and Services,Purchase Amazon UK Marketplace
01/12/2017,Environment & Community Services,Irm Bristol Ltd,24.41,Street Care - Buildings Maintenance,Purchase Irm Bristol Ltd
01/12/2017,Children Adult & Health,John Sheppard Butchers,24.72,School dinners,Purchase John Sheppard Butchers
01/12/2017,Children Adult & Health,Amazon.Co.Uk,26.20,Supplies and Services,Purchase Amazon.Co.Uk
01/12/2017,Environment & Community Services,B & Q 1081,22.66,Street Care - Buildings Maintenance,Purchase B & Q 1081
01/12/2017,Children Adult & Health,John Sheppard Butchers,27.67,School dinners,Purchase John Sheppard Butchers
01/12/2017,Children Adult & Health,Amazon UK Retail,30.50,0,Purchase Amazon UK Retail
01/12/2017,Children Adult & Health,John Sheppard Butchers,30.55,School dinners,Purchase John Sheppard Butchers
01/12/2017,Children Adult & Health,John Sheppard Butchers,30.86,School dinners,Purchase John Sheppard Butchers
01/12/2017,Children Adult & Health,John Sheppard Butchers,30.93,School dinners,Purchase John Sheppard Butchers
01/12/2017,Environment & Community Services,Screwfix Direct,33.78,Street Care - Buildings Maintenance,Purchase Screwfix Direct
01/12/2017,Children Adult & Health,John Sheppard Butchers,36.47,School dinners,Purchase John Sheppard Butchers
01/12/2017,Children Adult & Health,John Sheppard Butchers,38.84,School dinners,Purchase John Sheppard Butchers
01/12/2017,Children Adult & Health,Amazon UK Retail Amazon.C,38.96,Supplies and Services,Purchase Amazon UK Retail Amazon.C
01/12/2017,Children Adult & Health,John Sheppard Butchers,38.99,School dinners,Purchase John Sheppard Butchers
01/12/2017,Children Adult & Health,John Sheppard Butchers,39.22,School dinners,Purchase John Sheppard Butchers
01/12/2017,Children Adult & Health,John Sheppard Butchers,39.22,School dinners,Purchase John Sheppard Butchers
01/12/2017,Children Adult & Health,Amazon UK Retail Amazon.C,39.30,Credit Card Charges,Purchase Amazon UK Retail Amazon.C
01/12/2017,Children Adult & Health,Poundstretcher 344,39.98,0,Purchase Poundstretcher 344
01/12/2017,Children Adult & Health,John Sheppard Butchers,42.29,School dinners,Purchase John Sheppard Butchers
01/12/2017,Children Adult & Health,John Sheppard Butchers,43.90,School dinners,Purchase John Sheppard Butchers
01/12/2017,Children Adult & Health,John Sheppard Butchers,46.06,School dinners,Purchase John Sheppard Butchers
01/12/2017,Children Adult & Health,John Sheppard Butchers,46.28,School dinners,Purchase John Sheppard Butchers
01/12/2017,Children Adult & Health,John Sheppard Butchers,46.36,School dinners,Purchase John Sheppard Butchers
01/12/2017,Children Adult & Health,John Sheppard Butchers,46.40,School dinners,Purchase John Sheppard Butchers
01/12/2017,Children Adult & Health,John Sheppard Butchers,46.69,School dinners,Purchase John Sheppard Butchers
01/12/2017,Environment & Community Services,Amazon UK Marketplace,47.23,0,Purchase Amazon UK Marketplace
01/12/2017,Children Adult & Health,John Sheppard Butchers,52.16,School dinners,Purchase John Sheppard Butchers
01/12/2017,Children Adult & Health,John Sheppard Butchers,54.11,School dinners,Purchase John Sheppard Butchers
01/12/2017,Children Adult & Health,John Sheppard Butchers,54.24,School dinners,Purchase John Sheppard Butchers
01/12/2017,Children Adult & Health,John Sheppard Butchers,55.06,School dinners,Purchase John Sheppard Butchers
01/12/2017,Children Adult & Health,Kn Office Supplies,55.66,Supplies and Services,Purchase Kn Office Supplies
01/12/2017,Children Adult & Health,John Sheppard Butchers,59.50,School dinners,Purchase John Sheppard Butchers
01/12/2017,Children Adult & Health,John Sheppard Butchers,60.99,School dinners,Purchase John Sheppard Butchers
01/12/2017,Children Adult & Health,John Sheppard Butchers,61.12,School dinners,Purchase John Sheppard Butchers
01/12/2017,Children Adult & Health,John Sheppard Butchers,61.48,School dinners,Purchase John Sheppard Butchers
01/12/2017,Children Adult & Health,John Sheppard Butchers,61.48,School dinners,Purchase John Sheppard Butchers
01/12/2017,Children Adult & Health,John Sheppard Butchers,61.94,School dinners,Purchase John Sheppard Butchers
01/12/2017,Children Adult & Health,John Sheppard Butchers,66.00,School dinners,Purchase John Sheppard Butchers
01/12/2017,Children Adult & Health,John Sheppard Butchers,74.07,School dinners,Purchase John Sheppard Butchers
01/12/2017,Children Adult & Health,John Sheppard Butchers,77.14,School dinners,Purchase John Sheppard Butchers
01/12/2017,Children Adult & Health,Amazon.Co.Uk,78.00,Credit Card Charges,Purchase Amazon.Co.Uk
01/12/2017,Children Adult & Health,Brake Bros Ltd,86.45,School dinners,Purchase Brake Bros Ltd
01/12/2017,Children Adult & Health,Asda Home Shopping,97.07,Credit Card Charges,Purchase Asda Home Shopping
01/12/2017,Children Adult & Health,Kn Office Supplies,101.85,Supplies and Services,Purchase Kn Office Supplies
01/12/2017,Children Adult & Health,John Sheppard Butchers,109.59,School dinners,Purchase John Sheppard Butchers
01/12/2017,Environment & Community Services,Amazon.Co.Uk,111.90,0,Purchase Amazon.Co.Uk
01/12/2017,Children Adult & Health,Brake Bros Ltd,103.88,School dinners,Purchase Brake Bros Ltd
01/12/2017,Children Adult & Health,Brake Bros Ltd,115.35,School dinners,Purchase Brake Bros Ltd
01/12/2017,Environment & Community Services,Google,118.22,Supplies and Services,Purchase Google
01/12/2017,Children Adult & Health,The Range,123.62,0,Purchase The Range
01/12/2017,Children Adult & Health,Www.Argos.Co.Uk,123.93,Supplies and Services,Purchase Www.Argos.Co.Uk
01/12/2017,Children Adult & Health,Footasylum,124.97,Supplies and Services,Purchase Footasylum
01/12/2017,Children Adult & Health,Brake Bros Ltd,117.79,School dinners,Purchase Brake Bros Ltd
01/12/2017,Environment & Community Services,Amazon UK Retail Amazon.C,129.74,0,Purchase Amazon UK Retail Amazon.C
01/12/2017,Children Adult & Health,John Sheppard Butchers,133.02,School dinners,Purchase John Sheppard Butchers
01/12/2017,Children Adult & Health,Sp Mabboo Limited,140.00,0,Purchase Sp Mabboo Limited
01/12/2017,Children Adult & Health,Www.Officeneedsdirect.,143.62,0,Purchase Www.Officeneedsdirect.
01/12/2017,Children Adult & Health,John Sheppard Butchers,147.63,School dinners,Purchase John Sheppard Butchers
01/12/2017,Children Adult & Health,Brake Bros Ltd,144.52,School dinners,Purchase Brake Bros Ltd
01/12/2017,Children Adult & Health,Brake Bros Ltd,154.16,School dinners,Purchase Brake Bros Ltd
01/12/2017,Children Adult & Health,John Sheppard Butchers,179.88,School dinners,Purchase John Sheppard Butchers
01/12/2017,Children Adult & Health,Makro Self Service Bristo,180.49,Supplies and Services,Purchase Makro Self Service Bristo
01/12/2017,Chief Executive & Corporate Resources,Facebk Srcjgewvh2,212.95,0,Purchase Facebk Srcjgewvh2
01/12/2017,Children Adult & Health,John Sheppard Butchers,226.94,School dinners,Purchase John Sheppard Butchers
01/12/2017,Children Adult & Health,Brake Bros Ltd,212.62,School dinners,Purchase Brake Bros Ltd
01/12/2017,Children Adult & Health,Brake Bros Ltd,225.30,School dinners,Purchase Brake Bros Ltd
01/12/2017,Children Adult & Health,Brake Bros Ltd,229.32,School dinners,Purchase Brake Bros Ltd
01/12/2017,Children Adult & Health,Amazon UK Marketplace,242.97,Credit Card Charges,Purchase Amazon UK Marketplace
01/12/2017,Children Adult & Health,Brake Bros Ltd,237.40,School dinners,Purchase Brake Bros Ltd
01/12/2017,Children Adult & Health,Brake Bros Ltd,259.94,School dinners,Purchase Brake Bros Ltd
01/12/2017,Environment & Community Services,Heatandplumb Com,271.90,Supplies and Services,Purchase Heatandplumb Com
01/12/2017,Children Adult & Health,Amazon.Co.Uk,299.80,Credit Card Charges,Purchase Amazon.Co.Uk
01/12/2017,Children Adult & Health,Asda Superstore,308.74,Supplies and Services,Purchase Asda Superstore
01/12/2017,Environment & Community Services,Amazon.Co.Uk,396.00,0,Purchase Amazon.Co.Uk
02/12/2017,Children Adult & Health,Grangemoor Hotel,-43.00,0,Credit Voucher Grangemoor Hotel
02/12/2017,Children Adult & Health,Amazon.Co.Uk,4.45,Credit Card Charges,Purchase Amazon.Co.Uk
02/12/2017,Environment & Community Services,Amazon UK Retail Amazon.C,5.74,Supplies and Services,Purchase Amazon UK Retail Amazon.C
02/12/2017,Children Adult & Health,Amazon.Co.Uk,5.91,Credit Card Charges,Purchase Amazon.Co.Uk
02/12/2017,Children Adult & Health,Amazon UK Marketplace,10.89,Supplies and Services,Purchase Amazon UK Marketplace
02/12/2017,Children Adult & Health,Amazon.Co.Uk,10.98,Supplies and Services,Purchase Amazon.Co.Uk
02/12/2017,Children Adult & Health,National Express Limited,11.00,Supplies and Services,Purchase National Express Limited
02/12/2017,Children Adult & Health,Amazon.Co.Uk,11.99,Credit Card Charges,Purchase Amazon.Co.Uk
02/12/2017,Children Adult & Health,Wilko Retail Limit,12.00,Supplies and Services,Purchase Wilko Retail Limit
02/12/2017,Chief Executive & Corporate Resources,Wh Smith,12.99,Supplies and Services,Purchase Wh Smith
02/12/2017,Children Adult & Health,Amazon.Co.Uk,14.95,Credit Card Charges,Purchase Amazon.Co.Uk
02/12/2017,Children Adult & Health,Amazon UK Retail Amazon.C,15.63,0,Purchase Amazon UK Retail Amazon.C
02/12/2017,Children Adult & Health,Amazon UK Retail Amazon.C,15.77,Credit Card Charges,Purchase Amazon UK Retail Amazon.C
02/12/2017,Chief Executive & Corporate Resources,Amazon UK Retail Amazon.C,16.13,Credit Card Charges,Purchase Amazon UK Retail Amazon.C
02/12/2017,Chief Executive & Corporate Resources,Amazon UK Retail Amazon.C,16.45,Supplies and Services,Purchase Amazon UK Retail Amazon.C
02/12/2017,Chief Executive & Corporate Resources,Amazon UK Retail Amazon.C,16.45,Supplies and Services,Purchase Amazon UK Retail Amazon.C
02/12/2017,Children Adult & Health,Makro Self Service Bristo,24.00,Supplies and Services,Purchase Makro Self Service Bristo
02/12/2017,Children Adult & Health,Amazon.Co.Uk,27.48,0,Purchase Amazon.Co.Uk
02/12/2017,Children Adult & Health,Amazon.Co.Uk,29.03,0,Purchase Amazon.Co.Uk
02/12/2017,Children Adult & Health,Amazon UK Marketplace,34.92,Supplies and Services,Purchase Amazon UK Marketplace
02/12/2017,Children Adult & Health,Amazon.Co.Uk,45.67,Supplies and Services,Purchase Amazon.Co.Uk
02/12/2017,Children Adult & Health,Amazon.Co.Uk,66.92,0,Purchase Amazon.Co.Uk
02/12/2017,Children Adult & Health,Amazon UK Marketplace,96.95,Supplies and Services,Purchase Amazon UK Marketplace
02/12/2017,Chief Executive & Corporate Resources,Gwr Websales,202.50,Credit Card Charges,Purchase Gwr Websales
02/12/2017,Chief Executive & Corporate Resources,Gwr Websales,202.50,Credit Card Charges,Purchase Gwr Websales
02/12/2017,Environment & Community Services,Amazon UK Retail Amazon.C,256.78,0,Purchase Amazon UK Retail Amazon.C
03/12/2017,Children Adult & Health,Amazon UK Marketplace,3.89,0,Purchase Amazon UK Marketplace
03/12/2017,Environment & Community Services,Amazon.Co.Uk,6.59,0,Purchase Amazon.Co.Uk
03/12/2017,Children Adult & Health,Amazon UK Retail,12.78,0,Purchase Amazon UK Retail
03/12/2017,Environment & Community Services,Amazon UK Retail Amazon.C,14.97,Credit Card Charges,Purchase Amazon UK Retail Amazon.C
03/12/2017,Environment & Community Services,Amazon.Co.Uk,15.99,0,Purchase Amazon.Co.Uk
03/12/2017,Children Adult & Health,Amazon UK Retail,24.16,0,Purchase Amazon UK Retail
03/12/2017,Children Adult & Health,Amazon UK Retail,24.99,Supplies and Services,Purchase Amazon UK Retail
03/12/2017,Environment & Community Services,Amazon UK Retail,77.00,Credit Card Charges,Purchase Amazon UK Retail
03/12/2017,Children Adult & Health,Amazon.Co.Uk,79.67,Supplies and Services,Purchase Amazon.Co.Uk
03/12/2017,Chief Executive & Corporate Resources,Mailchimp,90.17,0,Purchase Mailchimp
03/12/2017,Environment & Community Services,Amazon UK Retail Amazon.C,128.39,0,Purchase Amazon UK Retail Amazon.C
04/12/2017,Environment & Community Services,Amazon Svcs Eu-Uk Amazon.,-61.16,Credit Card Charges,Credit Voucher Amazon Svcs Eu-Uk Amazon.
04/12/2017,Environment & Community Services,Amazon Svcs Eu-Uk Amazon.,-48.06,Credit Card Charges,Credit Voucher Amazon Svcs Eu-Uk Amazon.
04/12/2017,Chief Executive & Corporate Resources,Banner Group Ltd,-20.92,Stationery,Credit Voucher Banner Group Ltd
04/12/2017,Chief Executive & Corporate Resources,Tesco Stores 6420,1.09,0,Purchase Tesco Stores 6420
04/12/2017,Environment & Community Services,Amazon UK Marketplace,1.78,0,Purchase Amazon UK Marketplace
04/12/2017,Children Adult & Health,Amazon UK Marketplace,1.89,Supplies and Services,Purchase Amazon UK Marketplace
04/12/2017,Chief Executive & Corporate Resources,Banner Group Ltd,1.98,Stationery,Purchase Banner Group Ltd
04/12/2017,Children Adult & Health,W M Morrisons,5.50,Supplies and Services,Purchase W M Morrisons
04/12/2017,Chief Executive & Corporate Resources,Banner Group Ltd,4.92,Stationery,Purchase Banner Group Ltd
04/12/2017,Children Adult & Health,Gwr Bristol Tm To,6.90,Supplies and Services,Purchase Gwr Bristol Tm To
04/12/2017,Children Adult & Health,W M Morrisons,7.00,Supplies and Services,Purchase W M Morrisons
04/12/2017,Chief Executive & Corporate Resources,Banner Group Ltd,5.94,Stationery,Purchase Banner Group Ltd
04/12/2017,Chief Executive & Corporate Resources,Banner Group Ltd,7.23,Stationery,Purchase Banner Group Ltd
04/12/2017,Children Adult & Health,Wilko Retail Limit,9.00,Supplies and Services,Purchase Wilko Retail Limit
04/12/2017,Chief Executive & Corporate Resources,Banner Group Ltd,8.77,Stationery,Purchase Banner Group Ltd
04/12/2017,Children Adult & Health,Amazon UK Marketplace,9.34,0,Purchase Amazon UK Marketplace
04/12/2017,Children Adult & Health,Sainsburys S/mkts,9.80,Credit Card Charges,Purchase Sainsburys S/Mkts
04/12/2017,Children Adult & Health,Holiday Inns,12.90,Credit Card Charges,Purchase Holiday Inns
04/12/2017,Children Adult & Health,Poundland,20.15,Supplies and Services,Purchase Poundland
04/12/2017,Children Adult & Health,Trainline,20.96,Supplies and Services,Purchase Trainline
04/12/2017,Children Adult & Health,Tesco Stores 6420,28.10,Supplies and Services,Purchase Tesco Stores 6420
04/12/2017,Chief Executive & Corporate Resources,Banner Group Ltd,23.59,Stationery,Purchase Banner Group Ltd
04/12/2017,Environment & Community Services,Tesco Stores 5652,29.72,Credit Card Charges,Purchase Tesco Stores 5652
04/12/2017,Environment & Community Services,Howdens - Filton De47,27.59,0,Purchase Howdens - Filton De47
04/12/2017,Children Adult & Health,Just Music,55.56,Supplies and Services,Purchase Just Music
04/12/2017,Children Adult & Health,Tesco Stores 6420,62.00,Supplies and Services,Purchase Tesco Stores 6420
04/12/2017,Chief Executive & Corporate Resources,Banner Group Ltd,52.02,Stationery,Purchase Banner Group Ltd
04/12/2017,Children Adult & Health,Brake Bros Ltd,63.93,School dinners,Purchase Brake Bros Ltd
04/12/2017,Chief Executive & Corporate Resources,Banner Group Ltd,58.23,Stationery,Purchase Banner Group Ltd
04/12/2017,Children Adult & Health,Brake Bros Ltd,80.66,School dinners,Purchase Brake Bros Ltd
04/12/2017,Environment & Community Services,B & Q 1081,68.21,Street Care - Buildings Maintenance,Purchase B & Q 1081
04/12/2017,Children Adult & Health,Brake Bros Ltd,85.02,School dinners,Purchase Brake Bros Ltd
04/12/2017,Children Adult & Health,Martin Mccolls,86.40,0,Purchase Martin McColls
04/12/2017,Children Adult & Health,Holiday Inns,96.31,Credit Card Charges,Purchase Holiday Inns
04/12/2017,Children Adult & Health,Brake Bros Ltd,96.61,School dinners,Purchase Brake Bros Ltd
04/12/2017,Children Adult & Health,Brake Bros Ltd,100.62,School dinners,Purchase Brake Bros Ltd
04/12/2017,Children Adult & Health,Brake Bros Ltd,102.75,School dinners,Purchase Brake Bros Ltd
04/12/2017,Children Adult & Health,Brake Bros Ltd,116.93,School dinners,Purchase Brake Bros Ltd
04/12/2017,Children Adult & Health,Ikea Limited,120.00,Supplies and Services,Purchase Ikea Limited
04/12/2017,Children Adult & Health,Tesco Stores 6420,130.05,Credit Card Charges,Purchase Tesco Stores 6420
04/12/2017,Children Adult & Health,Brake Bros Ltd,122.06,School dinners,Purchase Brake Bros Ltd
04/12/2017,Children Adult & Health,British Heart Foundati,135.00,Supplies and Services,Purchase British Heart Foundati
04/12/2017,Children Adult & Health,Brake Bros Ltd,131.51,School dinners,Purchase Brake Bros Ltd
04/12/2017,Environment & Community Services,Olympus Electrical Whole,145.72,Street Care - Buildings Maintenance,Purchase Olympus Electrical Whole
04/12/2017,Children Adult & Health,John Sheppard Butchers,148.93,School dinners,Purchase John Sheppard Butchers
04/12/2017,Children Adult & Health,Cross Country Trains,164.00,Supplies and Services,Purchase Cross Country Trains
04/12/2017,Chief Executive & Corporate Resources,Banner Group Ltd,144.59,Stationery,Purchase Banner Group Ltd
04/12/2017,Children Adult & Health,Boardsdirect.Co.Uk,218.58,Supplies and Services,Purchase Boardsdirect.Co.Uk
04/12/2017,Children Adult & Health,Currys Superstore,245.48,Supplies and Services,Purchase Currys Superstore
04/12/2017,Environment & Community Services,Wickes Building,286.78,0,Purchase Wickes Building
04/12/2017,Environment & Community Services,Paypal,300.00,0,Purchase Paypal
04/12/2017,Children Adult & Health,Brake Bros Ltd,316.75,School dinners,Purchase Brake Bros Ltd
04/12/2017,Children Adult & Health,Worldstores,589.97,0,Purchase Worldstores
04/12/2017,Environment & Community Services,Spillshop.Co.Uk,597.60,Credit Card Charges,Purchase Spillshop.Co.Uk
05/12/2017,Environment & Community Services,Amazon Svcs Eu-Uk Amazon.,-30.59,Credit Card Charges,Credit Voucher Amazon Svcs Eu-Uk Amazon.
05/12/2017,Environment & Community Services,Amz*north Bayou Offici,-22.49,Credit Card Charges,Credit Voucher Amz*north Bayou Offici
05/12/2017,Children Adult & Health,Amazon UK Retail Amazon.C,1.72,Supplies and Services,Purchase Amazon UK Retail Amazon.C
05/12/2017,Children Adult & Health,Amazon.Co.Uk,2.90,Supplies and Services,Purchase Amazon.Co.Uk
05/12/2017,Children Adult & Health,Tesco Stores 6420,5.20,Supplies and Services,Purchase Tesco Stores 6420
05/12/2017,Children Adult & Health,Amazon UK Retail,5.86,Supplies and Services,Purchase Amazon UK Retail
05/12/2017,Children Adult & Health,Amazon UK Retail,5.86,Supplies and Services,Purchase Amazon UK Retail
05/12/2017,Children Adult & Health,Amazon UK Retail,5.86,Supplies and Services,Purchase Amazon UK Retail
05/12/2017,Children Adult & Health,Amazon UK Retail,5.86,Supplies and Services,Purchase Amazon UK Retail
05/12/2017,Children Adult & Health,Amazon UK Marketplace,6.99,Credit Card Charges,Purchase Amazon UK Marketplace
05/12/2017,Environment & Community Services,Screwfix Direct Lt,7.90,Supplies and Services,Purchase Screwfix Direct Lt
05/12/2017,Children Adults & Health,McDonalds,7.98,supplies and Services,Purchase McDonalds
05/12/2017,Children Adult & Health,Amazon UK Marketplace,9.99,Supplies and Services,Purchase Amazon UK Marketplace
05/12/2017,Children Adult & Health,Aldi Stores 775-141,11.03,Supplies and Services,Purchase Aldi Stores 775-141
05/12/2017,Children Adult & Health,Amazon UK Marketplace,11.19,Supplies and Services,Purchase Amazon UK Marketplace
05/12/2017,Children Adult & Health,W M Morrisons Plc,12.26,0,Purchase W M Morrisons Plc
05/12/2017,Children Adult & Health,Amazon UK Marketplace,12.99,Supplies and Services,Purchase Amazon UK Marketplace
05/12/2017,Children Adult & Health,Paperchase,14.75,Supplies and Services,Purchase Paperchase
05/12/2017,Children Adult & Health,Brake Bros Ltd,14.87,School dinners,Purchase Brake Bros Ltd
05/12/2017,Children Adult & Health,Www.Citizencard.Com,15.00,Supplies and Services,Purchase Www.Citizencard.Com
05/12/2017,Children Adult & Health,Tesco Stores 6420,15.79,Project Funding,Purchase Tesco Stores 6420
05/12/2017,Chief Executive & Corporate Resources,Banner Group Ltd,13.80,Stationery,Purchase Banner Group Ltd
05/12/2017,Children Adult & Health,Amazon UK Marketplace,17.40,Credit Card Charges,Purchase Amazon UK Marketplace
05/12/2017,Chief Executive & Corporate Resources,Banner Group Ltd,15.60,Stationery,Purchase Banner Group Ltd
05/12/2017,Environment & Community Services,Paypal,19.98,0,Purchase Paypal
05/12/2017,Children Adult & Health,Ee Top Up Vesta,20.00,Supplies and Services,Purchase Ee Top Up Vesta
05/12/2017,Children Adult & Health,Winter Stream Park,21.08,Supplies and Services,Purchase Winter Stream Park
05/12/2017,Children Adult & Health,Www.Simpsonseeds.Co.Uk,24.80,Credit Card Charges,Purchase Www.Simpsonseeds.Co.Uk
05/12/2017,Chief Executive & Corporate Resources,Banner Group Ltd,20.70,Stationery,Purchase Banner Group Ltd
05/12/2017,Children Adult & Health,Brake Bros Ltd,20.72,School dinners,Purchase Brake Bros Ltd
05/12/2017,Children Adult & Health,Tesco Stores 6420,25.00,Supplies and Services,Purchase Tesco Stores 6420
05/12/2017,Environment & Community Services,Olympus Electrical Whole,26.34,Street Care - Buildings Maintenance,Purchase Olympus Electrical Whole
05/12/2017,Environment & Community Services,Www Littlecraftybugs Co U,26.35,0,Purchase Www Littlecraftybugs Co U
05/12/2017,Children Adult & Health,Amazon UK Marketplace,29.13,Credit Card Charges,Purchase Amazon UK Marketplace
05/12/2017,Children Adult & Health,Www.Bristol-City.Gov.U,30.00,0,Purchase Www.Bristol-City.Gov.U
05/12/2017,Children Adults & Health,Boots 6544,30.04,supplies and Services,Purchase Boots 6544
05/12/2017,Children Adult & Health,Brake Bros Ltd,31.08,School dinners,Purchase Brake Bros Ltd
05/12/2017,Children Adult & Health,Amazon UK Retail,41.25,Credit Card Charges,Purchase Amazon UK Retail
05/12/2017,Children Adult & Health,Essential,41.48,Supplies and Services,Purchase Essential
05/12/2017,Environment & Community Services,Baker Ross Ltd,45.41,Credit Card Charges,Purchase Baker Ross Ltd
05/12/2017,Children Adult & Health,Hm Passport Office,46.00,Supplies and Services,Purchase Hm Passport Office
05/12/2017,Children Adult & Health,The Works,46.00,Supplies and Services,Purchase The Works
05/12/2017,Children Adult & Health,New Look,53.92,Supplies and Services,Purchase New Look
05/12/2017,Environment & Community Services,Screwfix Direct,54.99,0,Purchase Screwfix Direct
05/12/2017,Environment & Community Services,Cotswold Medicals Ltd,58.00,Credit Card Charges,Purchase Cotswold Medicals Ltd
05/12/2017,Chief Executive & Corporate Resources,Bt Conferencing,62.88,Credit Card Charges,Purchase Bt Conferencing
05/12/2017,Chief Executive & Corporate Resources,Banner Group Ltd,58.92,Stationery,Purchase Banner Group Ltd
05/12/2017,Environment & Community Services,Screwfix Direct Lt,65.23,Supplies and Services,Purchase Screwfix Direct Lt
05/12/2017,Children Adult & Health,Brake Bros Ltd,68.41,School dinners,Purchase Brake Bros Ltd
05/12/2017,Children Adult & Health,Brake Bros Ltd,69.00,School dinners,Purchase Brake Bros Ltd
05/12/2017,Environment & Community Services,Amazon UK Retail,75.88,0,Purchase Amazon UK Retail
05/12/2017,Children Adult & Health,B & Q 1022,64.78,Supplies and Services,Purchase B & Q 1022
05/12/2017,Children Adult & Health,Jd Sports Plc,80.00,Supplies and Services,Purchase Jd Sports Plc
05/12/2017,Children Adult & Health,Brake Bros Ltd,83.68,School dinners,Purchase Brake Bros Ltd
05/12/2017,Children Adult & Health,Martin Mccolls,86.40,Supplies and Services,Purchase Martin McColls
05/12/2017,Environment & Community Services,Arma Products Ltd,89.04,Supplies and Services,Purchase Arma Products Ltd
05/12/2017,Environment & Community Services,Paypal,91.80,Supplies and Services,Purchase Paypal
05/12/2017,Environment & Community Services,Paypal,108.00,Supplies and Services,Purchase Paypal
05/12/2017,Children Adult & Health,Brake Bros Ltd,102.88,School dinners,Purchase Brake Bros Ltd
05/12/2017,Children Adult & Health,Tesco Stores 6420,113.59,Credit Card Charges,Purchase Tesco Stores 6420
05/12/2017,Children Adult & Health,Brake Bros Ltd,118.33,School dinners,Purchase Brake Bros Ltd
05/12/2017,Children Adult & Health,Brake Bros Ltd,126.26,School dinners,Purchase Brake Bros Ltd
05/12/2017,Children Adult & Health,Brake Bros Ltd,138.91,School dinners,Purchase Brake Bros Ltd
05/12/2017,Children Adult & Health,Brake Bros Ltd,142.00,School dinners,Purchase Brake Bros Ltd
05/12/2017,Children Adult & Health,Amazon.Co.Uk,142.80,Supplies and Services,Purchase Amazon.Co.Uk
05/12/2017,Children Adult & Health,Brake Bros Ltd,144.71,School dinners,Purchase Brake Bros Ltd
05/12/2017,Children Adult & Health,Tvlicensing.Co.Uk,147.00,0,Purchase Tvlicensing.Co.Uk
05/12/2017,Children Adult & Health,Www.Simplyheavenlyfood,171.95,Supplies and Services,Purchase Www.Simplyheavenlyfood
05/12/2017,Children Adult & Health,Brake Bros Ltd,175.16,School dinners,Purchase Brake Bros Ltd
05/12/2017,Children Adult & Health,Brake Bros Ltd,244.45,School dinners,Purchase Brake Bros Ltd
05/12/2017,Children Adult & Health,Brake Bros Ltd,272.31,School dinners,Purchase Brake Bros Ltd
05/12/2017,Environment & Community Services,Appliancedirect Co,322.72,0,Purchase Appliancedirect Co
05/12/2017,Chief Executive & Corporate Resources,Virgin Trains,355.55,Credit Card Charges,Purchase Virgin Trains
05/12/2017,Environment & Community Services,Bristol Training Centr,370.80,Credit Card Charges,Purchase Bristol Training Centr
05/12/2017,Environment & Community Services,Www.Thewaterfront.Co.U,405.96,0,Purchase Www.Thewaterfront.Co.U
05/12/2017,Environment & Community Services,Green Valley Industria,443.84,0,Purchase Green Valley Industria
05/12/2017,Environment & Community Services,Paypal,585.60,Supplies and Services,Purchase Paypal
05/12/2017,Environment & Community Services,The Knowledge Academy,689.89,0,Purchase The Knowledge Academy
05/12/2017,Chief Executive & Corporate Resources,Gloucester Cc,1080.00,Credit Card Charges,Purchase Gloucester Cc
06/12/2017,Environment & Community Services,Howdens - Filton De47,-65.60,Street Care - Buildings Maintenance,Credit Voucher Howdens - Filton De47
06/12/2017,Environment & Community Services,Olympus Electrical Whole,-18.95,Street Care - Buildings Maintenance,Credit Voucher Olympus Electrical Whole
06/12/2017,Environment & Community Services,Asda Home Shopping,-2.00,Credit Card Charges,Credit Voucher Asda Home Shopping
06/12/2017,Environment & Community Services,Tesco Store 3539,-1.00,Credit Card Charges,Credit Voucher Tesco Store 3539
06/12/2017,Chief Executive & Corporate Resources,Banner Group Ltd,1.35,Stationery,Purchase Banner Group Ltd
06/12/2017,Chief Executive & Corporate Resources,Banner Group Ltd,1.38,Stationery,Purchase Banner Group Ltd
06/12/2017,Chief Executive & Corporate Resources,Banner Group Ltd,1.63,Stationery,Purchase Banner Group Ltd
06/12/2017,Chief Executive & Corporate Resources,Banner Group Ltd,1.99,Stationery,Purchase Banner Group Ltd
06/12/2017,Children Adult & Health,Amazon UK Marketplace,4.64,Credit Card Charges,Purchase Amazon UK Marketplace
06/12/2017,Chief Executive & Corporate Resources,Galleries Shoppingcent,5.20,Supplies and Services,Purchase Galleries Shoppingcent
06/12/2017,Children Adult & Health,Amazon UK Retail,5.81,Credit Card Charges,Purchase Amazon UK Retail
06/12/2017,Chief Executive & Corporate Resources,B & Q 1022,5.84,Supplies and Services,Purchase B & Q 1022
06/12/2017,Chief Executive & Corporate Resources,B & Q 1022,8.20,Supplies and Services,Purchase B & Q 1022
06/12/2017,Environment & Community Services,Screwfix Direct Lt,11.99,Supplies and Services,Purchase Screwfix Direct Lt
06/12/2017,Children Adult & Health,Amazon UK Retail,13.09,Credit Card Charges,Purchase Amazon UK Retail
06/12/2017,Children Adult & Health,Amazon UK Marketplace,13.24,Credit Card Charges,Purchase Amazon UK Marketplace
06/12/2017,Children Adult & Health,Brake Bros Ltd,15.30,School dinners,Purchase Brake Bros Ltd
06/12/2017,Children Adult & Health,Amazon UK Marketplace,16.94,Supplies and Services,Purchase Amazon UK Marketplace
06/12/2017,Environment & Community Services,Screwfix Direct Lt,18.99,Supplies and Services,Purchase Screwfix Direct Lt
06/12/2017,Children Adult & Health,Amazon UK Marketplace,21.99,Credit Card Charges,Purchase Amazon UK Marketplace
06/12/2017,Chief Executive & Corporate Resources,Banner Group Ltd,18.37,Stationery,Purchase Banner Group Ltd
06/12/2017,Chief Executive & Corporate Resources,Banner Group Ltd,24.75,Stationery,Purchase Banner Group Ltd
06/12/2017,Children Adult & Health,Paypal,33.94,Credit Card Charges,Purchase Paypal
06/12/2017,Environment & Community Services,Olympus Electrical Whole,38.32,Street Care - Buildings Maintenance,Purchase Olympus Electrical Whole
06/12/2017,Children Adult & Health,Brake Bros Ltd,38.47,School dinners,Purchase Brake Bros Ltd
06/12/2017,Chief Executive & Corporate Resources,Banner Group Ltd,32.48,Stationery,Purchase Banner Group Ltd
06/12/2017,Environment & Community Services,Asda Home Shopping,44.98,Credit Card Charges,Purchase Asda Home Shopping
06/12/2017,Children Adult & Health,Brake Bros Ltd,53.31,School dinners,Purchase Brake Bros Ltd
06/12/2017,Environment & Community Services,Howdens - Filton De47,46.77,Street Care - Buildings Maintenance,Purchase Howdens - Filton De47
06/12/2017,Children Adult & Health,Brake Bros Ltd,62.83,School dinners,Purchase Brake Bros Ltd
06/12/2017,Children Adult & Health,Alexandra Website,67.68,Supplies and Services,Purchase Alexandra Website
06/12/2017,Children Adult & Health,Arnos Manor,70.00,0,Purchase Arnos Manor
06/12/2017,Children Adult & Health,Brake Bros Ltd,70.07,School dinners,Purchase Brake Bros Ltd
06/12/2017,Children Adult & Health,Boots 2089,74.10,0,Purchase Boots 2089
06/12/2017,Children Adult & Health,Brake Bros Ltd,76.58,School dinners,Purchase Brake Bros Ltd
06/12/2017,Environment & Community Services,B & Q 1022,73.38,0,Purchase B & Q 1022
06/12/2017,Children Adult & Health,Brake Bros Ltd,92.48,School dinners,Purchase Brake Bros Ltd
06/12/2017,Children Adult & Health,Brake Bros Ltd,100.92,School dinners,Purchase Brake Bros Ltd
06/12/2017,Children Adult & Health,Amazon UK Marketplace,107.94,Credit Card Charges,Purchase Amazon UK Marketplace
06/12/2017,Children Adult & Health,Trainline,111.28,Supplies and Services,Purchase Trainline
06/12/2017,Environment & Community Services,British Standards,117.60,Credit Card Charges,Purchase British Standards
06/12/2017,Environment & Community Services,Wfm,120.00,Supplies and Services,Purchase Wfm
06/12/2017,Chief Executive & Corporate Resources,Gwr Websales,133.50,Credit Card Charges,Purchase Gwr Websales
06/12/2017,Children Adult & Health,Brake Bros Ltd,125.64,School dinners,Purchase Brake Bros Ltd
06/12/2017,Children Adult & Health,Brake Bros Ltd,138.26,School dinners,Purchase Brake Bros Ltd
06/12/2017,Environment & Community Services,British Standards,139.20,Credit Card Charges,Purchase British Standards
06/12/2017,Children Adult & Health,Brake Bros Ltd,141.44,School dinners,Purchase Brake Bros Ltd
06/12/2017,Children Adult & Health,Tvlicensing.Co.Uk,147.00,Supplies and Services,Purchase Tvlicensing.Co.Uk
06/12/2017,Children Adult & Health,Paypal,150.00,Credit Card Charges,Purchase Paypal
06/12/2017,Environment & Community Services,Tollhouse Clinic Ltd,152.00,Credit Card Charges,Purchase Tollhouse Clinic Ltd
06/12/2017,Children Adult & Health,Amazon UK Marketplace,157.97,Supplies and Services,Purchase Amazon UK Marketplace
06/12/2017,Children Adult & Health,Tesco Stores 6420,159.95,Supplies and Services,Purchase Tesco Stores 6420
06/12/2017,Environment & Community Services,England Athletics,160.00,Supplies and Services,Purchase England Athletics
06/12/2017,Children Adult & Health,Brake Bros Ltd,161.96,School dinners,Purchase Brake Bros Ltd
06/12/2017,Children Adult & Health,Amazon UK Retail,164.53,Credit Card Charges,Purchase Amazon UK Retail
06/12/2017,Children Adult & Health,Brake Bros Ltd,167.52,School dinners,Purchase Brake Bros Ltd
06/12/2017,Chief Executive & Corporate Resources,Banner Group Ltd,140.45,Stationery,Purchase Banner Group Ltd
06/12/2017,Children Adult & Health,Brake Bros Ltd,178.33,School dinners,Purchase Brake Bros Ltd
06/12/2017,Children Adult & Health,Brake Bros Ltd,170.21,School dinners,Purchase Brake Bros Ltd
06/12/2017,Children Adult & Health,Brake Bros Ltd,175.46,School dinners,Purchase Brake Bros Ltd
06/12/2017,Children Adult & Health,Brake Bros Ltd,184.24,School dinners,Purchase Brake Bros Ltd
06/12/2017,Children Adult & Health,Trainline,204.00,Supplies and Services,Purchase Trainline
06/12/2017,Children Adult & Health,Brake Bros Ltd,196.59,School dinners,Purchase Brake Bros Ltd
06/12/2017,Children Adult & Health,Brake Bros Ltd,211.03,School dinners,Purchase Brake Bros Ltd
06/12/2017,Children Adult & Health,Brake Bros Ltd,210.61,School dinners,Purchase Brake Bros Ltd
06/12/2017,Children Adult & Health,Brake Bros Ltd,225.75,School dinners,Purchase Brake Bros Ltd
06/12/2017,Children Adults & Health,Scanning Pens,238.80,0,Purchase Scanning Pens
06/12/2017,Children Adult & Health,Brake Bros Ltd,302.91,School dinners,Purchase Brake Bros Ltd
06/12/2017,Chief Executive & Corporate Resources,Rbi Qss Subs,358.80,Supplies and Services,Purchase Rbi Qss Subs
06/12/2017,Children Adult & Health,Trainline,393.16,Supplies and Services,Purchase Trainline
06/12/2017,Children Adult & Health,Ao Retail Limited,398.00,0,Purchase Ao Retail Limited
06/12/2017,Environment & Community Services,Pass Portable Applian,591.36,Credit Card Charges,Purchase Pass Portable Applian
06/12/2017,Chief Executive & Corporate Resources,Gwr Bristol Pway To,1970.00,Credit Card Charges,Purchase Gwr Bristol Pway To
07/12/2017,Children Adult & Health,Tesco Stores 6420,2.00,Supplies and Services,Purchase Tesco Stores 6420
07/12/2017,Environment & Community Services,Amazon UK Marketplace,2.09,Credit Card Charges,Purchase Amazon UK Marketplace
07/12/2017,Chief Executive & Corporate Resources,Amazon UK Marketplace,5.26,Supplies and Services,Purchase Amazon UK Marketplace
07/12/2017,Children Adult & Health,Amazon UK Marketplace,5.56,Credit Card Charges,Purchase Amazon UK Marketplace
07/12/2017,Children Adult & Health,John Sheppard Butchers,6.55,School dinners,Purchase John Sheppard Butchers
07/12/2017,Children Adult & Health,Amazon UK Marketplace,7.67,Credit Card Charges,Purchase Amazon UK Marketplace
07/12/2017,Children Adult & Health,Www.Livefoods.Co.U,7.83,Credit Card Charges,Purchase Www.Livefoods.Co.U
07/12/2017,Chief Executive & Corporate Resources,Amazon UK Marketplace,10.25,Supplies and Services,Purchase Amazon UK Marketplace
07/12/2017,Children Adult & Health,Music Exchange,10.35,Credit Card Charges,Purchase Music Exchange
07/12/2017,Children Adult & Health,Amazon UK Marketplace,10.52,Credit Card Charges,Purchase Amazon UK Marketplace
07/12/2017,Children Adult & Health,John Sheppard Butchers,11.31,School dinners,Purchase John Sheppard Butchers
07/12/2017,Children Adult & Health,John Sheppard Butchers,11.48,School dinners,Purchase John Sheppard Butchers
07/12/2017,Children Adult & Health,Amazon UK Marketplace,11.70,Credit Card Charges,Purchase Amazon UK Marketplace
07/12/2017,Children Adult & Health,B&m Retail,11.98,Supplies and Services,Purchase B&m Retail
07/12/2017,Children Adult & Health,Iceland,12.34,0,Purchase Iceland
07/12/2017,Environment & Community Services,Www.Toolstation.Com,14.40,0,Purchase Www.Toolstation.Com
07/12/2017,Children Adult & Health,Amazon UK Marketplace,14.45,Credit Card Charges,Purchase Amazon UK Marketplace
07/12/2017,Chief Executive & Corporate Resources,Amazon.Co.Uk,14.50,0,Purchase Amazon.Co.Uk
07/12/2017,Children Adult & Health,Amazon UK Marketplace,14.86,Supplies and Services,Purchase Amazon UK Marketplace
07/12/2017,Children Adult & Health,Rosina May Flowers,15.00,Credit Card Charges,Purchase Rosina May Flowers
07/12/2017,Children Adult & Health,Amazon UK Marketplace,15.99,Supplies and Services,Purchase Amazon UK Marketplace
07/12/2017,Children Adult & Health,John Sheppard Butchers,17.19,School dinners,Purchase John Sheppard Butchers
07/12/2017,Chief Executive & Corporate Resources,Www.Viking-Direct.Co.U,14.33,Supplies and Services,Purchase Www.Viking-Direct.Co.U
07/12/2017,Children Adult & Health,John Sheppard Butchers,17.25,School dinners,Purchase John Sheppard Butchers
07/12/2017,Children Adult & Health,Amazon UK Retail,17.57,Credit Card Charges,Purchase Amazon UK Retail
07/12/2017,Children Adult & Health,John Sheppard Butchers,18.15,School dinners,Purchase John Sheppard Butchers
07/12/2017,Environment & Community Services,Screwfix Direct Lt,19.99,Street Care - Buildings Maintenance,Purchase Screwfix Direct Lt
07/12/2017,Children Adult & Health,Amazon UK Marketplace,21.15,Supplies and Services,Purchase Amazon UK Marketplace
07/12/2017,Children Adult & Health,Poundworld Retail,21.85,Supplies and Services,Purchase Poundworld Retail
07/12/2017,Children Adult & Health,John Sheppard Butchers,22.74,School dinners,Purchase John Sheppard Butchers
07/12/2017,Environment & Community Services,Screwfix Direct,22.77,0,Purchase Screwfix Direct
07/12/2017,Children Adult & Health,John Sheppard Butchers,22.85,School dinners,Purchase John Sheppard Butchers
07/12/2017,Children Adult & Health,Brake Bros Ltd,23.00,School dinners,Purchase Brake Bros Ltd
07/12/2017,Environment & Community Services,R931110417 Museums,25.00,Supplies and Services,Purchase R931110417 Museums
07/12/2017,Children Adult & Health,Brake Bros Ltd,25.04,School dinners,Purchase Brake Bros Ltd
07/12/2017,Children Adult & Health,Brake Bros Ltd,27.55,School dinners,Purchase Brake Bros Ltd
07/12/2017,Children Adult & Health,John Sheppard Butchers,28.22,School dinners,Purchase John Sheppard Butchers
07/12/2017,Children Adult & Health,John Sheppard Butchers,28.39,School dinners,Purchase John Sheppard Butchers
07/12/2017,Children Adult & Health,John Sheppard Butchers,28.39,School dinners,Purchase John Sheppard Butchers
07/12/2017,Children Adult & Health,John Sheppard Butchers,28.39,School dinners,Purchase John Sheppard Butchers
07/12/2017,Children Adult & Health,John Sheppard Butchers,28.56,School dinners,Purchase John Sheppard Butchers
07/12/2017,Children Adult & Health,John Sheppard Butchers,28.56,School dinners,Purchase John Sheppard Butchers
07/12/2017,Children Adult & Health,John Sheppard Butchers,28.62,School dinners,Purchase John Sheppard Butchers
07/12/2017,Environment & Community Services,Amazon UK Marketplace,29.90,0,Purchase Amazon UK Marketplace
07/12/2017,Children Adult & Health,John Sheppard Butchers,30.58,School dinners,Purchase John Sheppard Butchers
07/12/2017,Children Adults & Health,Sainsburys S/mkts,30.60,supplies and Services,Purchase Sainsburys S/Mkts
07/12/2017,Environment & Community Services,Screwfix Direct,30.82,Street Care - Buildings Maintenance,Purchase Screwfix Direct
07/12/2017,Children Adult & Health,Amazon UK Marketplace,31.79,Supplies and Services,Purchase Amazon UK Marketplace
07/12/2017,Children Adult & Health,John Sheppard Butchers,33.88,School dinners,Purchase John Sheppard Butchers
07/12/2017,Children Adult & Health,John Sheppard Butchers,33.94,School dinners,Purchase John Sheppard Butchers
07/12/2017,Children Adult & Health,John Sheppard Butchers,33.94,School dinners,Purchase John Sheppard Butchers
07/12/2017,Children Adult & Health,John Sheppard Butchers,33.94,School dinners,Purchase John Sheppard Butchers
07/12/2017,Children Adult & Health,John Sheppard Butchers,33.94,School dinners,Purchase John Sheppard Butchers
07/12/2017,Children Adult & Health,John Sheppard Butchers,33.99,School dinners,Purchase John Sheppard Butchers
07/12/2017,Children Adult & Health,John Sheppard Butchers,34.16,School dinners,Purchase John Sheppard Butchers
07/12/2017,Children Adult & Health,John Sheppard Butchers,34.16,School dinners,Purchase John Sheppard Butchers
07/12/2017,Children Adult & Health,John Sheppard Butchers,34.16,School dinners,Purchase John Sheppard Butchers
07/12/2017,Children Adult & Health,Asda Superstore,35.00,Supplies and Services,Purchase Asda Superstore
07/12/2017,Children Adult & Health,Amazon.Co.Uk,36.75,Credit Card Charges,Purchase Amazon.Co.Uk
07/12/2017,Children Adult & Health,Brake Bros Ltd,36.99,School dinners,Purchase Brake Bros Ltd
07/12/2017,Children Adult & Health,Amazon UK Marketplace,39.99,Credit Card Charges,Purchase Amazon UK Marketplace
07/12/2017,Children Adult & Health,Outfit,40.00,Supplies and Services,Purchase Outfit
07/12/2017,Children Adult & Health,John Sheppard Butchers,40.04,School dinners,Purchase John Sheppard Butchers
07/12/2017,Children Adult & Health,John Sheppard Butchers,40.10,School dinners,Purchase John Sheppard Butchers
07/12/2017,Environment & Community Services,Tp Yate,33.92,0,Purchase Tp Yate
07/12/2017,Children Adult & Health,John Sheppard Butchers,42.84,School dinners,Purchase John Sheppard Butchers
07/12/2017,Children Adult & Health,Amazon UK Marketplace,43.96,Credit Card Charges,Purchase Amazon UK Marketplace
07/12/2017,Children Adult & Health,Amazon UK Marketplace,44.97,Supplies and Services,Purchase Amazon UK Marketplace
07/12/2017,Children Adult & Health,The Horseshoe,45.00,Credit Card Charges,Purchase The Horseshoe
07/12/2017,Environment & Community Services,Dnh*godaddy.Com Europe,46.74,Supplies and Services,Purchase Dnh*godaddy.Com Europe
07/12/2017,Children Adult & Health,Brake Bros Ltd,47.10,School dinners,Purchase Brake Bros Ltd
07/12/2017,Environment & Community Services,Tp Yate,41.00,0,Purchase Tp Yate
07/12/2017,Children Adult & Health,Brake Bros Ltd,41.44,School dinners,Purchase Brake Bros Ltd
07/12/2017,Children Adult & Health,John Sheppard Butchers,53.67,School dinners,Purchase John Sheppard Butchers
07/12/2017,Children Adult & Health,John Sheppard Butchers,56.90,School dinners,Purchase John Sheppard Butchers
07/12/2017,Children Adult & Health,Amazon UK Retail,59.90,Credit Card Charges,Purchase Amazon UK Retail
07/12/2017,Children Adult & Health,Brake Bros Ltd,61.21,School dinners,Purchase Brake Bros Ltd
07/12/2017,Children Adult & Health,Amazon UK Marketplace,62.96,Supplies and Services,Purchase Amazon UK Marketplace
07/12/2017,Children Adult & Health,Brake Bros Ltd,65.88,School dinners,Purchase Brake Bros Ltd
07/12/2017,Children Adult & Health,Amazon UK Marketplace,67.98,Credit Card Charges,Purchase Amazon UK Marketplace
07/12/2017,Children Adult & Health,John Sheppard Butchers,68.04,School dinners,Purchase John Sheppard Butchers
07/12/2017,Children Adult & Health,Screwfix Direct,68.62,Credit Card Charges,Purchase Screwfix Direct
07/12/2017,Children Adult & Health,Brake Bros Ltd,74.43,School dinners,Purchase Brake Bros Ltd
07/12/2017,Children Adult & Health,Brake Bros Ltd,82.06,School dinners,Purchase Brake Bros Ltd
07/12/2017,Children Adult & Health,Brake Bros Ltd,88.49,School dinners,Purchase Brake Bros Ltd
07/12/2017,Children Adult & Health,Brake Bros Ltd,91.22,School dinners,Purchase Brake Bros Ltd
07/12/2017,Children Adult & Health,John Sheppard Butchers,93.58,School dinners,Purchase John Sheppard Butchers
07/12/2017,Children Adult & Health,Brake Bros Ltd,92.78,School dinners,Purchase Brake Bros Ltd
07/12/2017,Children Adult & Health,Brake Bros Ltd,95.59,School dinners,Purchase Brake Bros Ltd
07/12/2017,Children Adult & Health,Brake Bros Ltd,98.44,School dinners,Purchase Brake Bros Ltd
07/12/2017,Children Adult & Health,Brake Bros Ltd,100.60,School dinners,Purchase Brake Bros Ltd
07/12/2017,Children Adult & Health,Brake Bros Ltd,101.72,School dinners,Purchase Brake Bros Ltd
07/12/2017,Children Adult & Health,A1 Coffee,104.57,Supplies and Services,Purchase A1 Coffee
07/12/2017,Children Adult & Health,Brake Bros Ltd,109.44,School dinners,Purchase Brake Bros Ltd
07/12/2017,Children Adult & Health,Budget Greeting Cards,118.65,Supplies and Services,Purchase Budget Greeting Cards
07/12/2017,Children Adult & Health,Brake Bros Ltd,112.97,School dinners,Purchase Brake Bros Ltd
07/12/2017,Children Adult & Health,John Sheppard Butchers,122.91,School dinners,Purchase John Sheppard Butchers
07/12/2017,Children Adult & Health,Brake Bros Ltd,122.12,School dinners,Purchase Brake Bros Ltd
07/12/2017,Children Adult & Health,Carphone Warehouse,129.99,0,Purchase Carphone Warehouse
07/12/2017,Children Adult & Health,Brake Bros Ltd,158.02,School dinners,Purchase Brake Bros Ltd
07/12/2017,Children Adult & Health,Brake Bros Ltd,178.76,School dinners,Purchase Brake Bros Ltd
07/12/2017,Children Adult & Health,Brake Bros Ltd,173.30,School dinners,Purchase Brake Bros Ltd
07/12/2017,Children Adult & Health,John Sheppard Butchers,179.70,School dinners,Purchase John Sheppard Butchers
07/12/2017,Children Adult & Health,Brake Bros Ltd,172.69,School dinners,Purchase Brake Bros Ltd
07/12/2017,Children Adult & Health,Brake Bros Ltd,186.16,School dinners,Purchase Brake Bros Ltd
07/12/2017,Children Adult & Health,Brake Bros Ltd,190.71,School dinners,Purchase Brake Bros Ltd
07/12/2017,Children Adult & Health,B & Q 1162,210.96,0,Purchase B & Q 1162
07/12/2017,Children Adult & Health,John Sheppard Butchers,242.26,School dinners,Purchase John Sheppard Butchers
07/12/2017,Children Adult & Health,Brake Bros Ltd,242.49,School dinners,Purchase Brake Bros Ltd
07/12/2017,Children Adult & Health,Brake Bros Ltd,251.84,School dinners,Purchase Brake Bros Ltd
07/12/2017,Children Adult & Health,Brake Bros Ltd,256.86,School dinners,Purchase Brake Bros Ltd
07/12/2017,Children Adult & Health,Brake Bros Ltd,354.51,School dinners,Purchase Brake Bros Ltd
07/12/2017,Children Adult & Health,Brake Bros Ltd,469.56,School dinners,Purchase Brake Bros Ltd
07/12/2017,Environment & Community Services,Marcliff,532.06,Supplies and Services,Purchase Marcliff
07/12/2017,Children Adult & Health,Brake Bros Ltd,509.78,School dinners,Purchase Brake Bros Ltd
07/12/2017,Environment & Community Services,Devoran Metals Ltd,1136.06,Credit Card Charges,Purchase Devoran Metals Ltd
07/12/2017,Environment & Community Services,Bigdug Limited,1552.38,Credit Card Charges,Purchase Bigdug Limited
08/12/2017,Environment & Community Services,Amz*sbs Consumables,-19.94,Supplies and Services,Credit Voucher Amz*sbs Consumables
08/12/2017,Chief Executive & Corporate Resources,Amz*laptop Adapters,-9.50,0,Credit Voucher Amz*laptop Adapters
08/12/2017,Chief Executive & Corporate Resources,Banner Group Ltd,0.42,Stationery,Purchase Banner Group Ltd
08/12/2017,Chief Executive & Corporate Resources,Banner Group Ltd,1.84,Stationery,Purchase Banner Group Ltd
08/12/2017,Children Adult & Health,Subway,6.90,0,Purchase Subway
08/12/2017,Environment & Community Services,Amazon.Co.Uk,10.18,Credit Card Charges,Purchase Amazon.Co.Uk
08/12/2017,Children Adults & Health,Marks&spencer Plc,11.65,supplies and Services,Purchase Marks&spencer Plc
08/12/2017,Chief Executive & Corporate Resources,Banner Group Ltd,9.78,Stationery,Purchase Banner Group Ltd
08/12/2017,Children Adults & Health,Tesco Stores 6420,12.00,supplies and Services,Purchase Tesco Stores 6420
08/12/2017,Children Adult & Health,John Sheppard Butchers,12.26,School dinners,Purchase John Sheppard Butchers
08/12/2017,Children Adult & Health,John Sheppard Butchers,12.84,School dinners,Purchase John Sheppard Butchers
08/12/2017,Children Adult & Health,Hawkes House,13.10,Supplies and Services,Purchase Hawkes House
08/12/2017,Children Adult & Health,Amazon UK Retail,13.95,Supplies and Services,Purchase Amazon UK Retail
08/12/2017,Environment & Community Services,Wfm,15.00,Supplies and Services,Purchase Wfm
08/12/2017,Children Adult & Health,John Sheppard Butchers,16.83,School dinners,Purchase John Sheppard Butchers
08/12/2017,Environment & Community Services,Amazon UK Retail,18.25,0,Purchase Amazon UK Retail
08/12/2017,Environment & Community Services,Amazon UK Retail,18.25,0,Purchase Amazon UK Retail
08/12/2017,Children Adult & Health,Sainsburys S/mkt,20.00,0,Purchase Sainsburys S/Mkt
08/12/2017,Children Adult & Health,Brake Bros Ltd,20.11,School dinners,Purchase Brake Bros Ltd
08/12/2017,Environment & Community Services,B & Q 1022,18.27,Street Care - Buildings Maintenance,Purchase B & Q 1022
08/12/2017,Children Adults & Health,Tesco Stores 6420,22.50,supplies and Services,Purchase Tesco Stores 6420
08/12/2017,Children Adult & Health,John Sheppard Butchers,23.67,School dinners,Purchase John Sheppard Butchers
08/12/2017,Children Adult & Health,John Sheppard Butchers,24.60,School dinners,Purchase John Sheppard Butchers
08/12/2017,Children Adult & Health,John Sheppard Butchers,25.12,School dinners,Purchase John Sheppard Butchers
08/12/2017,Children Adult & Health,John Sheppard Butchers,27.26,School dinners,Purchase John Sheppard Butchers
08/12/2017,Children Adult & Health,John Sheppard Butchers,27.96,School dinners,Purchase John Sheppard Butchers
08/12/2017,Chief Executive & Corporate Resources,Amazon UK Marketplace,30.03,Supplies and Services,Purchase Amazon UK Marketplace
08/12/2017,Children Adult & Health,John Sheppard Butchers,30.55,School dinners,Purchase John Sheppard Butchers
08/12/2017,Children Adult & Health,Amazon UK Marketplace,32.79,Credit Card Charges,Purchase Amazon UK Marketplace
08/12/2017,Children Adult & Health,John Sheppard Butchers,35.11,School dinners,Purchase John Sheppard Butchers
08/12/2017,Children Adult & Health,John Sheppard Butchers,35.26,School dinners,Purchase John Sheppard Butchers
08/12/2017,Children Adult & Health,John Sheppard Butchers,35.84,School dinners,Purchase John Sheppard Butchers
08/12/2017,Children Adult & Health,John Sheppard Butchers,38.92,School dinners,Purchase John Sheppard Butchers
08/12/2017,Children Adult & Health,John Sheppard Butchers,40.19,School dinners,Purchase John Sheppard Butchers
08/12/2017,Children Adult & Health,John Sheppard Butchers,42.58,School dinners,Purchase John Sheppard Butchers
08/12/2017,Children Adults & Health,National Express Limited,43.60,0,Purchase National Express Limited
08/12/2017,Children Adult & Health,John Sheppard Butchers,44.18,School dinners,Purchase John Sheppard Butchers
08/12/2017,Children Adult & Health,John Sheppard Butchers,44.60,School dinners,Purchase John Sheppard Butchers
08/12/2017,Children Adults & Health,Spar Patchway (Br0776),46.20,supplies and Services,Purchase Spar Patchway (Br0776)
08/12/2017,Children Adults & Health,Asda Stores 4777,46.78,supplies and Services,Purchase Asda Stores 4777
08/12/2017,Children Adult & Health,Brake Bros Ltd,47.03,School dinners,Purchase Brake Bros Ltd
08/12/2017,Children Adult & Health,Amazon UK Retail,47.71,Supplies and Services,Purchase Amazon UK Retail
08/12/2017,Children Adult & Health,John Sheppard Butchers,48.02,School dinners,Purchase John Sheppard Butchers
08/12/2017,Environment & Community Services,Howdens - Filton De47,40.77,Street Care - Buildings Maintenance,Purchase Howdens - Filton De47
08/12/2017,Children Adult & Health,Amazon Eu Amazon.Co.Uk,50.47,Supplies and Services,Purchase Amazon Eu Amazon.Co.Uk
08/12/2017,Children Adult & Health,John Sheppard Butchers,51.37,School dinners,Purchase John Sheppard Butchers
08/12/2017,Environment & Community Services,Amazon UK Marketplace,53.15,0,Purchase Amazon UK Marketplace
08/12/2017,Children Adult & Health,John Sheppard Butchers,54.11,School dinners,Purchase John Sheppard Butchers
08/12/2017,Children Adult & Health,John Sheppard Butchers,54.16,School dinners,Purchase John Sheppard Butchers
08/12/2017,Children Adult & Health,John Sheppard Butchers,56.78,School dinners,Purchase John Sheppard Butchers
08/12/2017,Children Adult & Health,John Sheppard Butchers,57.14,School dinners,Purchase John Sheppard Butchers
08/12/2017,Children Adult & Health,Brake Bros Ltd,59.73,School dinners,Purchase Brake Bros Ltd
08/12/2017,Children Adult & Health,John Sheppard Butchers,64.11,School dinners,Purchase John Sheppard Butchers
08/12/2017,Children Adult & Health,John Sheppard Butchers,66.98,School dinners,Purchase John Sheppard Butchers
08/12/2017,Chief Executive & Corporate Resources,Amazon UK Marketplace,69.43,0,Purchase Amazon UK Marketplace
08/12/2017,Children Adult & Health,Brake Bros Ltd,71.07,School dinners,Purchase Brake Bros Ltd
08/12/2017,Children Adult & Health,John Sheppard Butchers,72.12,School dinners,Purchase John Sheppard Butchers
08/12/2017,Children Adult & Health,Brake Bros Ltd,73.28,School dinners,Purchase Brake Bros Ltd
08/12/2017,Children Adult & Health,John Sheppard Butchers,73.38,School dinners,Purchase John Sheppard Butchers
08/12/2017,Children Adult & Health,John Sheppard Butchers,79.87,School dinners,Purchase John Sheppard Butchers
08/12/2017,Children Adult & Health,John Sheppard Butchers,80.38,School dinners,Purchase John Sheppard Butchers
08/12/2017,Children Adult & Health,John Sheppard Butchers,81.46,School dinners,Purchase John Sheppard Butchers
08/12/2017,Children Adult & Health,John Sheppard Butchers,83.15,School dinners,Purchase John Sheppard Butchers
08/12/2017,Children Adult & Health,Brake Bros Ltd,83.49,School dinners,Purchase Brake Bros Ltd
08/12/2017,Children Adult & Health,John Sheppard Butchers,84.42,School dinners,Purchase John Sheppard Butchers
08/12/2017,Children Adult & Health,John Sheppard Butchers,86.83,School dinners,Purchase John Sheppard Butchers
08/12/2017,Children Adult & Health,John Sheppard Butchers,90.56,School dinners,Purchase John Sheppard Butchers
08/12/2017,Children Adult & Health,John Sheppard Butchers,92.17,School dinners,Purchase John Sheppard Butchers
08/12/2017,Children Adult & Health,John Sheppard Butchers,93.45,School dinners,Purchase John Sheppard Butchers
08/12/2017,Children Adult & Health,John Sheppard Butchers,94.76,School dinners,Purchase John Sheppard Butchers
08/12/2017,Children Adult & Health,John Sheppard Butchers,96.04,School dinners,Purchase John Sheppard Butchers
08/12/2017,Children Adult & Health,John Sheppard Butchers,98.00,School dinners,Purchase John Sheppard Butchers
08/12/2017,Children Adult & Health,John Sheppard Butchers,99.02,School dinners,Purchase John Sheppard Butchers
08/12/2017,Children Adult & Health,John Sheppard Butchers,106.47,School dinners,Purchase John Sheppard Butchers
08/12/2017,Children Adult & Health,John Sheppard Butchers,112.09,School dinners,Purchase John Sheppard Butchers
08/12/2017,Children Adult & Health,John Sheppard Butchers,113.92,School dinners,Purchase John Sheppard Butchers
08/12/2017,Children Adult & Health,Www.Argos.Co.Uk,113.94,Supplies and Services,Purchase Www.Argos.Co.Uk
08/12/2017,Children Adult & Health,Brake Bros Ltd,114.89,School dinners,Purchase Brake Bros Ltd
08/12/2017,Children Adult & Health,John Sheppard Butchers,117.33,School dinners,Purchase John Sheppard Butchers
08/12/2017,Children Adult & Health,John Sheppard Butchers,120.58,School dinners,Purchase John Sheppard Butchers
08/12/2017,Children Adults & Health,South Glos Council,122.71,0,Purchase South Glos Council
08/12/2017,Children Adult & Health,John Sheppard Butchers,130.03,School dinners,Purchase John Sheppard Butchers
08/12/2017,Children Adult & Health,Penylan Country Lodge,134.44,Supplies and Services,Purchase Penylan Country Lodge
08/12/2017,Chief Executive & Corporate Resources,Amazon UK Marketplace,140.89,0,Purchase Amazon UK Marketplace
08/12/2017,Children Adult & Health,Brake Bros Ltd,150.08,School dinners,Purchase Brake Bros Ltd
08/12/2017,Children Adult & Health,Asda Home Shopping,166.91,Credit Card Charges,Purchase Asda Home Shopping
08/12/2017,Children Adult & Health,John Sheppard Butchers,175.31,School dinners,Purchase John Sheppard Butchers
08/12/2017,Children Adult & Health,Brake Bros Ltd,220.53,School dinners,Purchase Brake Bros Ltd
08/12/2017,Children Adult & Health,Brake Bros Ltd,225.30,School dinners,Purchase Brake Bros Ltd
08/12/2017,Children Adult & Health,John Sheppard Butchers,233.24,School dinners,Purchase John Sheppard Butchers
08/12/2017,Children Adult & Health,John Sheppard Butchers,239.15,School dinners,Purchase John Sheppard Butchers
08/12/2017,Children Adult & Health,John Sheppard Butchers,263.64,School dinners,Purchase John Sheppard Butchers
08/12/2017,Children Adult & Health,Brake Bros Ltd,298.06,School dinners,Purchase Brake Bros Ltd
08/12/2017,Children Adult & Health,Brake Bros Ltd,380.47,School dinners,Purchase Brake Bros Ltd
08/12/2017,Chief Executive & Corporate Resources,Amazon UK Marketplace,382.38,0,Purchase Amazon UK Marketplace
08/12/2017,Children Adult & Health,John Sheppard Butchers,509.91,School dinners,Purchase John Sheppard Butchers
08/12/2017,Children Adults & Health,Nas Uk,558.00,Supplies and Services,Purchase Nas Uk
09/12/2017,Children Adult & Health,Amazon UK Retail,15.39,Credit Card Charges,Purchase Amazon UK Retail
09/12/2017,Children Adult & Health,Amazon Eu Amazon.Co.Uk,25.75,Supplies and Services,Purchase Amazon Eu Amazon.Co.Uk
09/12/2017,Children Adult & Health,Amazon Eu Amazon.Co.Uk,51.44,Supplies and Services,Purchase Amazon Eu Amazon.Co.Uk
09/12/2017,Chief Executive & Corporate Resources,Amazon UK Marketplace,64.95,0,Purchase Amazon UK Marketplace
09/12/2017,Children Adult & Health,Debenhams,165.31,0,Purchase Debenhams
09/12/2017,Children Adult & Health,Post Office Counter,371.70,0,Purchase Post Office Counter
10/12/2017,Chief Executive & Corporate Resources,Lidl Uk,1.09,0,Purchase Lidl Uk
11/12/2017,Chief Executive & Corporate Resources,Banner Group Ltd,-35.91,Stationery,Credit Voucher Banner Group Ltd
11/12/2017,Chief Executive & Corporate Resources,Amazon Eu Amazon.Co.Uk,-31.84,0,Credit Voucher Amazon Eu Amazon.Co.Uk
11/12/2017,Chief Executive & Corporate Resources,Banner Group Ltd,0.26,Stationery,Purchase Banner Group Ltd
11/12/2017,Chief Executive & Corporate Resources,Banner Group Ltd,1.71,Stationery,Purchase Banner Group Ltd
11/12/2017,Chief Executive & Corporate Resources,Banner Group Ltd,1.89,Stationery,Purchase Banner Group Ltd
11/12/2017,Environment & Community Services,Marcliff,5.37,Street Care - Buildings Maintenance,Purchase Marcliff
11/12/2017,Environment & Community Services,B & Q 1022,5.16,Street Care - Buildings Maintenance,Purchase B & Q 1022
11/12/2017,Environment & Community Services,Kent Bldng Plastic,6.35,Street Care - Buildings Maintenance,Purchase Kent Bldng Plastic
11/12/2017,Children Adult & Health,John Sheppard Butchers,7.52,School dinners,Purchase John Sheppard Butchers
11/12/2017,Children Adults & Health,Homesense,10.04,supplies and Services,Purchase Homesense
11/12/2017,Children Adult & Health,1&1 Internet Limited,11.92,0,Purchase 1&1 Internet Limited
11/12/2017,Children Adult & Health,John Sheppard Butchers,12.92,School dinners,Purchase John Sheppard Butchers
11/12/2017,Children Adult & Health,Www.Hmv.Com,16.00,0,Purchase Www.Hmv.Com
11/12/2017,Children Adult & Health,John Sheppard Butchers,17.03,School dinners,Purchase John Sheppard Butchers
11/12/2017,Children Adult & Health,John Sheppard Butchers,18.57,School dinners,Purchase John Sheppard Butchers
11/12/2017,Children Adult & Health,John Sheppard Butchers,19.08,School dinners,Purchase John Sheppard Butchers
11/12/2017,Chief Executive & Corporate Resources,Banner Group Ltd,16.39,Stationery,Purchase Banner Group Ltd
11/12/2017,Children Adult & Health,Www.Argos.Co.Uk,19.99,0,Purchase Www.Argos.Co.Uk
11/12/2017,Children Adults & Health,Dw Sports Fitness,20.00,supplies and Services,Purchase Dw Sports Fitness
11/12/2017,Chief Executive & Corporate Resources,Trainline,23.97,Supplies and Services,Purchase Trainline
11/12/2017,Children Adult & Health,Paypal,23.99,Supplies and Services,Purchase Paypal
11/12/2017,Children Adult & Health,Ikea Limited,25.00,0,Purchase Ikea Limited
11/12/2017,Chief Executive & Corporate Resources,Banner Group Ltd,21.36,Stationery,Purchase Banner Group Ltd
11/12/2017,Children Adult & Health,Wilko.Com,27.20,0,Purchase Wilko.Com
11/12/2017,Chief Executive & Corporate Resources,Www.Ryman.Co.Uk,28.40,Credit Card Charges,Purchase Www.Ryman.Co.Uk
11/12/2017,Chief Executive & Corporate Resources,B & Q 1022,24.01,Supplies and Services,Purchase B & Q 1022
11/12/2017,Environment & Community Services,Tileflair Ltd Cribbs C,29.28,Street Care - Buildings Maintenance,Purchase Tileflair Ltd Cribbs C
11/12/2017,Children Adult & Health,John Sheppard Butchers,29.29,School dinners,Purchase John Sheppard Butchers
11/12/2017,Children Adult & Health,Sainsburys S/mkts,30.70,Credit Card Charges,Purchase Sainsburys S/Mkts
11/12/2017,Environment & Community Services,Tp Yate,27.73,Street Care - Buildings Maintenance,Purchase Tp Yate
11/12/2017,Environment & Community Services,Screwfix Direct,35.07,Street Care - Buildings Maintenance,Purchase Screwfix Direct
11/12/2017,Children Adult & Health,John Sheppard Butchers,37.76,School dinners,Purchase John Sheppard Butchers
11/12/2017,Children Adult & Health,John Sheppard Butchers,38.95,School dinners,Purchase John Sheppard Butchers
11/12/2017,Environment & Community Services,Screwfix Direct,43.21,Street Care - Buildings Maintenance,Purchase Screwfix Direct
11/12/2017,Children Adult & Health,Amazon Svcs Eu-Uk Amazon.,43.79,Supplies and Services,Purchase Amazon Svcs Eu-Uk Amazon.
11/12/2017,Children Adult & Health,John Sheppard Butchers,46.89,School dinners,Purchase John Sheppard Butchers
11/12/2017,Children Adult & Health,John Sheppard Butchers,48.55,School dinners,Purchase John Sheppard Butchers
11/12/2017,Environment & Community Services,Bristol Training Centr,49.44,0,Purchase Bristol Training Centr
11/12/2017,Children Adult & Health,Brake Bros Ltd,41.44,School dinners,Purchase Brake Bros Ltd
11/12/2017,Children Adult & Health,Brake Bros Ltd,57.55,School dinners,Purchase Brake Bros Ltd
11/12/2017,Children Adult & Health,John Sheppard Butchers,60.02,School dinners,Purchase John Sheppard Butchers
11/12/2017,Environment & Community Services,Tesco Stores 5652,60.40,Credit Card Charges,Purchase Tesco Stores 5652
11/12/2017,Children Adult & Health,John Sheppard Butchers,60.59,School dinners,Purchase John Sheppard Butchers
11/12/2017,Children Adult & Health,John Sheppard Butchers,67.10,School dinners,Purchase John Sheppard Butchers
11/12/2017,Children Adult & Health,John Sheppard Butchers,70.80,School dinners,Purchase John Sheppard Butchers
11/12/2017,Children Adult & Health,John Sheppard Butchers,79.92,School dinners,Purchase John Sheppard Butchers
11/12/2017,Children Adult & Health,John Sheppard Butchers,82.65,School dinners,Purchase John Sheppard Butchers
11/12/2017,Children Adult & Health,John Sheppard Butchers,82.66,School dinners,Purchase John Sheppard Butchers
11/12/2017,Children Adult & Health,John Sheppard Butchers,83.56,School dinners,Purchase John Sheppard Butchers
11/12/2017,Environment & Community Services,Wm Morrison Food.Com,83.90,Credit Card Charges,Purchase Wm Morrison Food.Com
11/12/2017,Children Adult & Health,John Sheppard Butchers,85.90,School dinners,Purchase John Sheppard Butchers
11/12/2017,Children Adult & Health,Central Convenience Stor,86.40,Supplies and Services,Purchase Central Convenience Stor
11/12/2017,Children Adult & Health,John Sheppard Butchers,87.28,School dinners,Purchase John Sheppard Butchers
11/12/2017,Children Adult & Health,John Sheppard Butchers,87.28,School dinners,Purchase John Sheppard Butchers
11/12/2017,Children Adult & Health,John Sheppard Butchers,87.47,School dinners,Purchase John Sheppard Butchers
11/12/2017,Children Adult & Health,Brake Bros Ltd,90.20,School dinners,Purchase Brake Bros Ltd
11/12/2017,Children Adult & Health,John Sheppard Butchers,90.76,School dinners,Purchase John Sheppard Butchers
11/12/2017,Children Adult & Health,John Sheppard Butchers,92.66,School dinners,Purchase John Sheppard Butchers
11/12/2017,Children Adult & Health,John Sheppard Butchers,92.66,School dinners,Purchase John Sheppard Butchers
11/12/2017,Children Adult & Health,Brake Bros Ltd,93.92,School dinners,Purchase Brake Bros Ltd
11/12/2017,Children Adult & Health,Brake Bros Ltd,98.01,School dinners,Purchase Brake Bros Ltd
11/12/2017,Children Adult & Health,Www.Hmv.Com,104.00,0,Purchase Www.Hmv.Com
11/12/2017,Children Adult & Health,Brake Bros Ltd,104.23,School dinners,Purchase Brake Bros Ltd
11/12/2017,Chief Executive & Corporate Resources,Banner Group Ltd,91.92,Stationery,Purchase Banner Group Ltd
11/12/2017,Children Adult & Health,Brake Bros Ltd,110.41,School dinners,Purchase Brake Bros Ltd
11/12/2017,Children Adult & Health,John Sheppard Butchers,121.30,School dinners,Purchase John Sheppard Butchers
11/12/2017,Children Adult & Health,Tesco Stores 6420,128.98,Supplies and Services,Purchase Tesco Stores 6420
11/12/2017,Children Adult & Health,Brake Bros Ltd,137.30,School dinners,Purchase Brake Bros Ltd
11/12/2017,Chief Executive & Corporate Resources,Screwfix Direct,129.76,Credit Card Charges,Purchase Screwfix Direct
11/12/2017,Children Adult & Health,Argos,179.99,Supplies and Services,Purchase Argos
11/12/2017,Children Adult & Health,John Sheppard Butchers,181.14,School dinners,Purchase John Sheppard Butchers
11/12/2017,Chief Executive & Corporate Resources,Banner Group Ltd,154.30,Stationery,Purchase Banner Group Ltd
11/12/2017,Children Adult & Health,Ikea Limited,190.50,0,Purchase Ikea Limited
11/12/2017,Children Adult & Health,Carpets Direct,220.00,Supplies and Services,Purchase Carpets Direct
11/12/2017,Children Adult & Health,Brake Bros Ltd,239.54,School dinners,Purchase Brake Bros Ltd
11/12/2017,Environment & Community Services,Paypal,317.40,0,Purchase Paypal
11/12/2017,Children Adult & Health,Trainline,400.09,Supplies and Services,Purchase Trainline
11/12/2017,Children Adult & Health,Boots.Com,457.00,0,Purchase Boots.Com
11/12/2017,Chief Executive & Corporate Resources,Banner Group Ltd,557.20,Stationery,Purchase Banner Group Ltd
11/12/2017,Children Adult & Health,Indesit Factory Grade,929.00,Supplies and Services,Purchase Indesit Factory Grade
11/12/2017,Children Adult & Health,Carpets Direct,1000.00,Supplies and Services,Purchase Carpets Direct
12/12/2017,Chief Executive & Corporate Resources,Www.Screwfix.Com,-96.60,Credit Card Charges,Credit Voucher Www.Screwfix.Com
12/12/2017,Children Adult & Health,Brake Bros Ltd,-41.44,School dinners,Credit Voucher Brake Bros Ltd
12/12/2017,Children Adult & Health,Brake Bros Ltd,-41.44,School dinners,Credit Voucher Brake Bros Ltd
12/12/2017,Environment & Community Services,Tesco Store 3539,-44.35,Credit Card Charges,Credit Voucher Tesco Store 3539
12/12/2017,Children Adult & Health,Brake Bros Ltd,-31.08,School dinners,Credit Voucher Brake Bros Ltd
12/12/2017,Children Adult & Health,Brake Bros Ltd,-28.16,School dinners,Credit Voucher Brake Bros Ltd
12/12/2017,Children Adult & Health,Brake Bros Ltd,-16.88,School dinners,Credit Voucher Brake Bros Ltd
12/12/2017,Children Adult & Health,Brake Bros Ltd,-15.30,School dinners,Credit Voucher Brake Bros Ltd
12/12/2017,Children Adult & Health,Brake Bros Ltd,-15.30,School dinners,Credit Voucher Brake Bros Ltd
12/12/2017,Children Adult & Health,Brake Bros Ltd,-10.36,School dinners,Credit Voucher Brake Bros Ltd
12/12/2017,Children Adult & Health,Brake Bros Ltd,-9.72,School dinners,Credit Voucher Brake Bros Ltd
12/12/2017,Children Adult & Health,Brake Bros Ltd,-8.47,School dinners,Credit Voucher Brake Bros Ltd
12/12/2017,Children Adult & Health,Brake Bros Ltd,-7.65,School dinners,Credit Voucher Brake Bros Ltd
12/12/2017,Children Adult & Health,Brake Bros Ltd,-7.65,School dinners,Credit Voucher Brake Bros Ltd
12/12/2017,Children Adult & Health,Brake Bros Ltd,-5.28,School dinners,Credit Voucher Brake Bros Ltd
12/12/2017,Children Adult & Health,Brake Bros Ltd,-5.72,School dinners,Credit Voucher Brake Bros Ltd
12/12/2017,Environment & Community Services,Tesco Store 3539,-5.18,Credit Card Charges,Credit Voucher Tesco Store 3539
12/12/2017,Children Adult & Health,Brake Bros Ltd,-4.87,School dinners,Credit Voucher Brake Bros Ltd
12/12/2017,Chief Executive & Corporate Resources,Banner Group Ltd,-2.64,Stationery,Credit Voucher Banner Group Ltd
12/12/2017,Children Adult & Health,Br Restaurant,1.00,Project Funding,Purchase Br Restaurant
12/12/2017,Chief Executive & Corporate Resources,Banner Group Ltd,1.63,Stationery,Purchase Banner Group Ltd
12/12/2017,Children Adult & Health,B & Q Cribbs Cause,3.00,Supplies and Services,Purchase B & Q Cribbs Cause
12/12/2017,Children Adult & Health,B & Q 1081,3.30,Supplies and Services,Purchase B & Q 1081
12/12/2017,Children Adult & Health,Amazon UK Marketplace,4.67,Credit Card Charges,Purchase Amazon UK Marketplace
12/12/2017,Children Adults & Health,Sainsburys S/Mkts,5.00,supplies and Services,Purchase Sainsburys S/Mkts
12/12/2017,Chief Executive & Corporate Resources,B & Q 1022,4.64,Supplies and Services,Purchase B & Q 1022
12/12/2017,Chief Executive & Corporate Resources,Banner Group Ltd,4.89,Stationery,Purchase Banner Group Ltd
12/12/2017,Environment & Community Services,North Bristol Plumbing,7.13,Supplies and Services,Purchase North Bristol Plumbing
12/12/2017,Chief Executive & Corporate Resources,Banner Group Ltd,7.35,Stationery,Purchase Banner Group Ltd
12/12/2017,Children Adult & Health,McDonalds,9.08,Supplies and Services,Purchase McDonalds
12/12/2017,Children Adult & Health,W M Morrisons Plc,11.06,Credit Card Charges,Purchase W M Morrisons Plc
12/12/2017,Environment & Community Services,Amazon Svcs Eu-Uk Amazon.,14.99,Credit Card Charges,Purchase Amazon Svcs Eu-Uk Amazon.
12/12/2017,Children Adult & Health,Amazon UK Marketplace,15.25,Supplies and Services,Purchase Amazon UK Marketplace
12/12/2017,Environment & Community Services,Toolnet,17.51,Credit Card Charges,Purchase Toolnet
12/12/2017,Children Adult & Health,John Sheppard Butchers,17.64,School dinners,Purchase John Sheppard Butchers
12/12/2017,Children Adult & Health,John Sheppard Butchers,18.56,School dinners,Purchase John Sheppard Butchers
12/12/2017,Children Adult & Health,John Sheppard Butchers,19.84,School dinners,Purchase John Sheppard Butchers
12/12/2017,Children Adult & Health,Ms-2 Stores,20.00,Supplies and Services,Purchase Ms-2 Stores
12/12/2017,Children Adult & Health,J D Sports 265,20.00,Supplies and Services,Purchase J D Sports 265
12/12/2017,Children Adult & Health,Martin Mccolls,20.16,Supplies and Services,Purchase Martin McColls
12/12/2017,Children Adult & Health,John Sheppard Butchers,20.68,School dinners,Purchase John Sheppard Butchers
12/12/2017,Children Adult & Health,John Sheppard Butchers,22.00,School dinners,Purchase John Sheppard Butchers
12/12/2017,Children Adult & Health,John Sheppard Butchers,24.63,School dinners,Purchase John Sheppard Butchers
12/12/2017,Children Adult & Health,John Sheppard Butchers,24.63,School dinners,Purchase John Sheppard Butchers
12/12/2017,Children Adult & Health,John Sheppard Butchers,24.69,School dinners,Purchase John Sheppard Butchers
12/12/2017,Children Adult & Health,John Sheppard Butchers,24.75,School dinners,Purchase John Sheppard Butchers
12/12/2017,Children Adults & Health,Shiva News,25.25,Supplies and Services,Purchase Shiva News
12/12/2017,Children Adult & Health,Amazon Svcs Eu-Uk Amazon.,26.20,Supplies and Services,Purchase Amazon Svcs Eu-Uk Amazon.
12/12/2017,Children Adult & Health,John Sheppard Butchers,26.27,School dinners,Purchase John Sheppard Butchers
12/12/2017,Children Adult & Health,John Sheppard Butchers,26.53,School dinners,Purchase John Sheppard Butchers
12/12/2017,Children Adult & Health,Dominos Pizza,28.98,Project Funding,Purchase Dominos Pizza
12/12/2017,Children Adult & Health,John Sheppard Butchers,29.08,School dinners,Purchase John Sheppard Butchers
12/12/2017,Children Adult & Health,John Sheppard Butchers,29.16,School dinners,Purchase John Sheppard Butchers
12/12/2017,Children Adult & Health,John Sheppard Butchers,29.99,School dinners,Purchase John Sheppard Butchers
12/12/2017,Chief Executive & Corporate Resources,Banner Group Ltd,25.02,Stationery,Purchase Banner Group Ltd
12/12/2017,Children Adult & Health,John Sheppard Butchers,30.23,School dinners,Purchase John Sheppard Butchers
12/12/2017,Children Adult & Health,John Sheppard Butchers,30.23,School dinners,Purchase John Sheppard Butchers
12/12/2017,Children Adult & Health,John Sheppard Butchers,30.35,School dinners,Purchase John Sheppard Butchers
12/12/2017,Children Adult & Health,John Sheppard Butchers,30.84,School dinners,Purchase John Sheppard Butchers
12/12/2017,Children Adult & Health,Poundstretcher 344,31.96,Supplies and Services,Purchase Poundstretcher 344
12/12/2017,Children Adult & Health,John Sheppard Butchers,32.12,School dinners,Purchase John Sheppard Butchers
12/12/2017,Children Adult & Health,John Sheppard Butchers,33.16,School dinners,Purchase John Sheppard Butchers
12/12/2017,Children Adult & Health,Brake Bros Ltd,33.75,School dinners,Purchase Brake Bros Ltd
12/12/2017,Children Adult & Health,John Sheppard Butchers,33.84,School dinners,Purchase John Sheppard Butchers
12/12/2017,Children Adult & Health,Argos Ltd,33.98,Supplies and Services,Purchase Argos Ltd
12/12/2017,Children Adult & Health,John Sheppard Butchers,35.33,School dinners,Purchase John Sheppard Butchers
12/12/2017,Children Adult & Health,John Sheppard Butchers,35.51,School dinners,Purchase John Sheppard Butchers
12/12/2017,Children Adult & Health,John Sheppard Butchers,36.47,School dinners,Purchase John Sheppard Butchers
12/12/2017,Children Adult & Health,John Sheppard Butchers,37.48,School dinners,Purchase John Sheppard Butchers
12/12/2017,Environment & Community Services,Bluebay Building Produ,31.48,0,Purchase Bluebay Building Produ
12/12/2017,Children Adult & Health,John Sheppard Butchers,40.11,School dinners,Purchase John Sheppard Butchers
12/12/2017,Children Adult & Health,Brake Bros Ltd,40.61,School dinners,Purchase Brake Bros Ltd
12/12/2017,Chief Executive & Corporate Resources,Banner Group Ltd,37.49,Stationery,Purchase Banner Group Ltd
12/12/2017,Children Adult & Health,John Sheppard Butchers,45.32,School dinners,Purchase John Sheppard Butchers
12/12/2017,Environment & Community Services,Newey & Eyre,39.45,Street Care - Buildings Maintenance,Purchase Newey & Eyre
12/12/2017,Children Adult & Health,John Sheppard Butchers,47.52,School dinners,Purchase John Sheppard Butchers
12/12/2017,Children Adult & Health,Www.Argos.Co.Uk,48.93,Credit Card Charges,Purchase Www.Argos.Co.Uk
12/12/2017,Children Adult & Health,John Sheppard Butchers,53.64,School dinners,Purchase John Sheppard Butchers
12/12/2017,Children Adult & Health,John Sheppard Butchers,54.55,School dinners,Purchase John Sheppard Butchers
12/12/2017,Children Adult & Health,The Range,56.96,Supplies and Services,Purchase The Range
12/12/2017,Children Adult & Health,Amazon Svcs Eu-Uk Amazon.,57.05,Supplies and Services,Purchase Amazon Svcs Eu-Uk Amazon.
12/12/2017,Children Adult & Health,John Sheppard Butchers,64.67,School dinners,Purchase John Sheppard Butchers
12/12/2017,Children Adult & Health,John Sheppard Butchers,66.34,School dinners,Purchase John Sheppard Butchers
12/12/2017,Children Adult & Health,Brake Bros Ltd,67.99,School dinners,Purchase Brake Bros Ltd
12/12/2017,Children Adult & Health,John Sheppard Butchers,76.76,School dinners,Purchase John Sheppard Butchers
12/12/2017,Children Adult & Health,John Sheppard Butchers,77.05,School dinners,Purchase John Sheppard Butchers
12/12/2017,Children Adult & Health,Brake Bros Ltd,86.35,School dinners,Purchase Brake Bros Ltd
12/12/2017,Children Adult & Health,John Sheppard Butchers,87.14,School dinners,Purchase John Sheppard Butchers
12/12/2017,Children Adult & Health,John Sheppard Butchers,87.35,School dinners,Purchase John Sheppard Butchers
12/12/2017,Children Adult & Health,John Sheppard Butchers,88.12,School dinners,Purchase John Sheppard Butchers
12/12/2017,Children Adult & Health,John Sheppard Butchers,93.89,School dinners,Purchase John Sheppard Butchers
12/12/2017,Children Adult & Health,Amazon UK Marketplace,95.26,Credit Card Charges,Purchase Amazon UK Marketplace
12/12/2017,Children Adult & Health,Rightio Ltd,100.80,Supplies and Services,Purchase Rightio Ltd
12/12/2017,Children Adult & Health,John Sheppard Butchers,102.72,School dinners,Purchase John Sheppard Butchers
12/12/2017,Children Adult & Health,John Sheppard Butchers,103.11,School dinners,Purchase John Sheppard Butchers
12/12/2017,Children Adult & Health,John Sheppard Butchers,106.58,School dinners,Purchase John Sheppard Butchers
12/12/2017,Chief Executive & Corporate Resources,Www.Arb.Org.Uk,107.00,0,Purchase Www.Arb.Org.Uk
12/12/2017,Children Adult & Health,Brake Bros Ltd,109.10,School dinners,Purchase Brake Bros Ltd
12/12/2017,Children Adult & Health,Amazon UK Marketplace,112.97,Credit Card Charges,Purchase Amazon UK Marketplace
12/12/2017,Children Adult & Health,Brake Bros Ltd,116.32,School dinners,Purchase Brake Bros Ltd
12/12/2017,Children Adult & Health,Car Paint Warehouse,122.91,Credit Card Charges,Purchase Car Paint Warehouse
12/12/2017,Children Adult & Health,Brake Bros Ltd,120.33,School dinners,Purchase Brake Bros Ltd
12/12/2017,Children Adult & Health,John Sheppard Butchers,132.06,School dinners,Purchase John Sheppard Butchers
12/12/2017,Children Adult & Health,John Sheppard Butchers,135.83,School dinners,Purchase John Sheppard Butchers
12/12/2017,Children Adult & Health,John Sheppard Butchers,137.48,School dinners,Purchase John Sheppard Butchers
12/12/2017,Children Adult & Health,Protelhealth Limited,154.49,Supplies and Services,Purchase Protelhealth Limited
12/12/2017,Children Adult & Health,John Sheppard Butchers,158.41,School dinners,Purchase John Sheppard Butchers
12/12/2017,Children Adult & Health,Brake Bros Ltd,173.53,School dinners,Purchase Brake Bros Ltd
12/12/2017,Children Adult & Health,Brake Bros Ltd,180.31,School dinners,Purchase Brake Bros Ltd
12/12/2017,Children Adult & Health,John Sheppard Butchers,182.91,School dinners,Purchase John Sheppard Butchers
12/12/2017,Children Adult & Health,Brake Bros Ltd,189.01,School dinners,Purchase Brake Bros Ltd
12/12/2017,Children Adult & Health,John Sheppard Butchers,192.92,School dinners,Purchase John Sheppard Butchers
12/12/2017,Children Adult & Health,Www.Therange.Co.Uk,217.67,0,Purchase Www.Therange.Co.Uk
12/12/2017,Children Adult & Health,Brake Bros Ltd,230.74,School dinners,Purchase Brake Bros Ltd
12/12/2017,Children Adult & Health,Car Paint Warehouse,239.66,Credit Card Charges,Purchase Car Paint Warehouse
12/12/2017,Children Adult & Health,B & M Retail,275.94,Supplies and Services,Purchase B & M Retail
12/12/2017,Environment & Community Services,British Standards,681.60,Credit Card Charges,Purchase British Standards
13/12/2017,Environment & Community Services,Apcoa Connect - Fgw,2.20,Credit Card Charges,Purchase Apcoa Connect - Fgw
13/12/2017,Children Adult & Health,The Bristol Kitchen,2.59,Supplies and Services,Purchase The Bristol Kitchen
13/12/2017,Children Adult & Health,Musicnotes.Com,3.09,Supplies and Services,Purchase (USD 3.99) Musicnotes.Com
13/12/2017,Children Adult & Health,Musicnotes.Com,4.25,Supplies and Services,Purchase (USD 5.50) Musicnotes.Com
13/12/2017,Children Adult & Health,Musicnotes.Com,4.84,Supplies and Services,Purchase (USD 6.25) Musicnotes.Com
13/12/2017,Environment & Community Services,Gwr Bristol Pw Gate,4.90,Credit Card Charges,Purchase Gwr Bristol Pw Gate
13/12/2017,Chief Executive & Corporate Resources,Banner Group Ltd,4.78,Stationery,Purchase Banner Group Ltd
13/12/2017,Children Adult & Health,John Sheppard Butchers,6.33,School dinners,Purchase John Sheppard Butchers
13/12/2017,Environment & Community Services,Amazon Svcs Eu-Uk Amazon.,6.99,Credit Card Charges,Purchase Amazon Svcs Eu-Uk Amazon.
13/12/2017,Chief Executive & Corporate Resources,Amazon UK Marketplace,7.59,Supplies and Services,Purchase Amazon UK Marketplace
13/12/2017,Children Adult & Health,Costa @ Next 43040935,8.35,Supplies and Services,Purchase Costa @ Next 43040935
13/12/2017,Environment & Community Services,Amazon UK Retail,9.26,0,Purchase Amazon UK Retail
13/12/2017,Environment & Community Services,Amazon Eu Amazon.Co.Uk,10.58,Credit Card Charges,Purchase Amazon Eu Amazon.Co.Uk
13/12/2017,Environment & Community Services,B & Q 1280,8.87,Street Care - Buildings Maintenance,Purchase B & Q 1280
13/12/2017,Environment & Community Services,B & Q 1022,9.18,Street Care - Buildings Maintenance,Purchase B & Q 1022
13/12/2017,Chief Executive & Corporate Resources,Banner Group Ltd,10.02,Stationery,Purchase Banner Group Ltd
13/12/2017,Environment & Community Services,Wfm,11.75,Street Care - Buildings Maintenance,Purchase Wfm
13/12/2017,Chief Executive & Corporate Resources,Amazon Svcs Eu-Uk Amazon.,14.98,Credit Card Charges,Purchase Amazon Svcs Eu-Uk Amazon.
13/12/2017,Environment & Community Services,Amazon UK Marketplace,14.99,0,Purchase Amazon UK Marketplace
13/12/2017,Children Adults & Health,High Street Off Li 14386,15.50,Supplies and Services,Purchase High Street Off Li 14386
13/12/2017,Chief Executive & Corporate Resources,Amazon Eu Amazon.Co.Uk,17.80,Credit Card Charges,Purchase Amazon Eu Amazon.Co.Uk
13/12/2017,Children Adult & Health,Costa @ Next 43037555,18.45,Supplies and Services,Purchase Costa @ Next 43037555
13/12/2017,Children Adults & Health,Wh Smith,20.00,supplies and Services,Purchase Wh Smith
13/12/2017,Chief Executive & Corporate Resources,Banner Group Ltd,17.97,Stationery,Purchase Banner Group Ltd
13/12/2017,Environment & Community Services,Amazon UK Marketplace,21.64,0,Purchase Amazon UK Marketplace
13/12/2017,Children Adult & Health,Frankie & Bennys 5336,23.20,Supplies and Services,Purchase Frankie & Bennys 5336
13/12/2017,Children Adult & Health,Tvlicensing.Co.Uk,24.50,Supplies and Services,Purchase Tvlicensing.Co.Uk
13/12/2017,Chief Executive & Corporate Resources,Banner Group Ltd,22.89,Stationery,Purchase Banner Group Ltd
13/12/2017,Children Adult & Health,Everything Hair,27.97,Supplies and Services,Purchase Everything Hair
13/12/2017,Environment & Community Services,Asda Home Shopping,29.65,Credit Card Charges,Purchase Asda Home Shopping
13/12/2017,Chief Executive & Corporate Resources,Amazon Svcs Eu-Uk Amazon.,29.99,Credit Card Charges,Purchase Amazon Svcs Eu-Uk Amazon.
13/12/2017,Children Adult & Health,Poundland,32.10,0,Purchase Poundland
13/12/2017,Environment & Community Services,Screwfix Direct,34.99,Street Care - Buildings Maintenance,Purchase Screwfix Direct
13/12/2017,Chief Executive & Corporate Resources,Amazon UK Retail,37.63,0,Purchase Amazon UK Retail
13/12/2017,Children Adult & Health,Amazon Eu Amazon.Co.Uk,39.00,Credit Card Charges,Purchase Amazon Eu Amazon.Co.Uk
13/12/2017,Children Adults & Health,Boots 2089,40.91,supplies and Services,Purchase Boots 2089
13/12/2017,Children Adult & Health,H&m,50.00,Supplies and Services,Purchase H&m
13/12/2017,Children Adult & Health,Amazon UK Marketplace,50.92,Credit Card Charges,Purchase Amazon UK Marketplace
13/12/2017,Children Adult & Health,Amazon UK Retail,51.60,Supplies and Services,Purchase Amazon UK Retail
13/12/2017,Children Adult & Health,Brake Bros Ltd,54.29,School dinners,Purchase Brake Bros Ltd
13/12/2017,Children Adult & Health,Pandora,60.00,Supplies and Services,Purchase Pandora
13/12/2017,Children Adult & Health,Brake Bros Ltd,61.52,School dinners,Purchase Brake Bros Ltd
13/12/2017,Children Adult & Health,Amazon UK Retail,65.70,Credit Card Charges,Purchase Amazon UK Retail
13/12/2017,Children Adult & Health,Brake Bros Ltd,67.84,School dinners,Purchase Brake Bros Ltd
13/12/2017,Children Adult & Health,Brake Bros Ltd,70.53,School dinners,Purchase Brake Bros Ltd
13/12/2017,Chief Executive & Corporate Resources,Www.Voucherexpress.Co.,73.00,0,Purchase Www.Voucherexpress.Co.
13/12/2017,Chief Executive & Corporate Resources,Amazon UK Marketplace,74.28,0,Purchase Amazon UK Marketplace
13/12/2017,Children Adult & Health,"Geotrust, Inc.",76.57,Supplies and Services,"Purchase (USD 99.00) Geotrust, Inc."
13/12/2017,Children Adult & Health,Brake Bros Ltd,81.94,School dinners,Purchase Brake Bros Ltd
13/12/2017,Children Adult & Health,Brake Bros Ltd,83.48,School dinners,Purchase Brake Bros Ltd
13/12/2017,Children Adults & Health,Cyclops Video,87.10,supplies and Services,Purchase Cyclops Video
13/12/2017,Children Adult & Health,Brake Bros Ltd,93.43,School dinners,Purchase Brake Bros Ltd
13/12/2017,Children Adult & Health,Brake Bros Ltd,98.94,School dinners,Purchase Brake Bros Ltd
13/12/2017,Children Adult & Health,Brake Bros Ltd,99.10,School dinners,Purchase Brake Bros Ltd
13/12/2017,Children Adult & Health,Brake Bros Ltd,97.58,School dinners,Purchase Brake Bros Ltd
13/12/2017,Children Adult & Health,The Horseshoe,116.84,Credit Card Charges,Purchase The Horseshoe
13/12/2017,Children Adult & Health,Brake Bros Ltd,124.17,School dinners,Purchase Brake Bros Ltd
13/12/2017,Children Adult & Health,Brake Bros Ltd,124.63,School dinners,Purchase Brake Bros Ltd
13/12/2017,Children Adult & Health,Brake Bros Ltd,124.99,School dinners,Purchase Brake Bros Ltd
13/12/2017,Environment & Community Services,B & Q 1280,104.61,Street Care - Buildings Maintenance,Purchase B & Q 1280
13/12/2017,Children Adult & Health,Brake Bros Ltd,126.16,School dinners,Purchase Brake Bros Ltd
13/12/2017,Children Adult & Health,Brake Bros Ltd,128.99,School dinners,Purchase Brake Bros Ltd
13/12/2017,Children Adult & Health,Brake Bros Ltd,136.83,School dinners,Purchase Brake Bros Ltd
13/12/2017,Children Adult & Health,Brake Bros Ltd,140.71,School dinners,Purchase Brake Bros Ltd
13/12/2017,Children Adult & Health,Primark Stores Ltd,155.00,0,Purchase Primark Stores Ltd
13/12/2017,Children Adult & Health,Brake Bros Ltd,172.64,School dinners,Purchase Brake Bros Ltd
13/12/2017,Children Adult & Health,The Aerial Man (Dan Gra,174.00,Supplies and Services,Purchase The Aerial Man (Dan Gra
13/12/2017,Environment & Community Services,Www.Purelypaper.Co.Uk,191.04,0,Purchase Www.Purelypaper.Co.Uk
13/12/2017,Children Adult & Health,Primark Stores Ltd,207.50,0,Purchase Primark Stores Ltd
13/12/2017,Chief Executive & Corporate Resources,Seton,211.68,Supplies and Services,Purchase Seton
13/12/2017,Children Adult & Health,Brake Bros Ltd,214.35,School dinners,Purchase Brake Bros Ltd
13/12/2017,Children Adult & Health,Golden Hart,240.68,Supplies and Services,Purchase Golden Hart
13/12/2017,Children Adult & Health,Brake Bros Ltd,282.38,School dinners,Purchase Brake Bros Ltd
13/12/2017,Chief Executive & Corporate Resources,Banner Group Ltd,266.90,Stationery,Purchase Banner Group Ltd
13/12/2017,Chief Executive & Corporate Resources,Banner Group Ltd,274.09,Stationery,Purchase Banner Group Ltd
13/12/2017,Chief Executive & Corporate Resources,Www.Johnlewis.Com,448.99,0,Purchase Www.Johnlewis.Com
13/12/2017,Children Adult & Health,Merlin Hs Rent/srv Chg,615.70,Supplies and Services,Purchase Merlin Hs Rent/Srv Chg
13/12/2017,Children Adult & Health,Brake Bros Ltd,706.35,School dinners,Purchase Brake Bros Ltd
13/12/2017,Chief Executive & Corporate Resources,Amazon UK Retail,821.24,0,Purchase Amazon UK Retail
14/12/2017,Environment & Community Services,Www.Handtec.Co.Uk,-303.98,Credit Card Charges,Credit Voucher Www.Handtec.Co.Uk
14/12/2017,Children Adult & Health,Brake Bros Ltd,-39.47,School dinners,Credit Voucher Brake Bros Ltd
14/12/2017,Children Adult & Health,Brake Bros Ltd,-8.47,School dinners,Credit Voucher Brake Bros Ltd
14/12/2017,Children Adult & Health,Wilko.Com,-2.00,0,Credit Voucher Wilko.Com
14/12/2017,Environment & Community Services,B & Q 1280,0.87,0,Purchase B & Q 1280
14/12/2017,Children Adult & Health,Bristol City Council,4.40,0,Purchase Bristol City Council
14/12/2017,Environment & Community Services,B & Q 1081,4.17,Street Care - Buildings Maintenance,Purchase B & Q 1081
14/12/2017,Children Adult & Health,Asda Superstore,5.50,Supplies and Services,Purchase Asda Superstore
14/12/2017,Environment & Community Services,Gwr Bristol Tm Gate,6.10,Credit Card Charges,Purchase Gwr Bristol Tm Gate
14/12/2017,Children Adult & Health,The Southern Co-Op,9.02,Supplies and Services,Purchase The Southern Co-Op
14/12/2017,Children Adult & Health,Www.Muddyfaces.Co.Uk,9.99,Supplies and Services,Purchase Www.Muddyfaces.Co.Uk
14/12/2017,Environment & Community Services,Screwfix Direct,18.56,Street Care - Buildings Maintenance,Purchase Screwfix Direct
14/12/2017,Children Adult & Health,Martin Mccolls,20.00,0,Purchase Martin McColls
14/12/2017,Children Adult & Health,Kings Food And Wine,21.00,Supplies and Services,Purchase Kings Food And Wine
14/12/2017,Children Adult & Health,Sportsdirect.Com,22.00,Supplies and Services,Purchase Sportsdirect.Com
14/12/2017,Children Adult & Health,Brake Bros Ltd,25.48,School dinners,Purchase Brake Bros Ltd
14/12/2017,Environment & Community Services,Amazon Svcs Eu-Uk Amazon.,25.96,0,Purchase Amazon Svcs Eu-Uk Amazon.
14/12/2017,Children Adult & Health,Tesco Stores 6420,26.00,0,Purchase Tesco Stores 6420
14/12/2017,Children Adult & Health,Amazon UK Retail,27.92,Credit Card Charges,Purchase Amazon UK Retail
14/12/2017,Children Adult & Health,Amazon UK Retail,28.47,Credit Card Charges,Purchase Amazon UK Retail
14/12/2017,Children Adults & Health,High Street Off Li 14386,30.50,Supplies and Services,Purchase High Street Off Li 14386
14/12/2017,Children Adult & Health,Asda Superstore,33.59,0,Purchase Asda Superstore
14/12/2017,Children Adult & Health,Brake Bros Ltd,33.79,School dinners,Purchase Brake Bros Ltd
14/12/2017,Chief Executive & Corporate Resources,Amazon UK Marketplace,35.98,0,Purchase Amazon UK Marketplace
14/12/2017,Children Adult & Health,Brake Bros Ltd,36.35,School dinners,Purchase Brake Bros Ltd
14/12/2017,Children Adult & Health,Brake Bros Ltd,38.69,School dinners,Purchase Brake Bros Ltd
14/12/2017,Children Adult & Health,Brake Bros Ltd,42.52,School dinners,Purchase Brake Bros Ltd
14/12/2017,Children Adult & Health,Amazon UK Marketplace,44.97,Credit Card Charges,Purchase Amazon UK Marketplace
14/12/2017,Children Adult & Health,Brake Bros Ltd,48.01,School dinners,Purchase Brake Bros Ltd
14/12/2017,Children Adult & Health,Brake Bros Ltd,53.93,School dinners,Purchase Brake Bros Ltd
14/12/2017,Children Adult & Health,Brake Bros Ltd,60.24,School dinners,Purchase Brake Bros Ltd
14/12/2017,Children Adult & Health,Brake Bros Ltd,72.15,School dinners,Purchase Brake Bros Ltd
14/12/2017,Environment & Community Services,Sw Federation,75.00,Supplies and Services,Purchase Sw Federation
14/12/2017,Children Adult & Health,Brake Bros Ltd,77.68,School dinners,Purchase Brake Bros Ltd
14/12/2017,Children Adult & Health,Brake Bros Ltd,90.54,School dinners,Purchase Brake Bros Ltd
14/12/2017,Children Adult & Health,Brake Bros Ltd,95.90,School dinners,Purchase Brake Bros Ltd
14/12/2017,Children Adult & Health,Brake Bros Ltd,103.78,School dinners,Purchase Brake Bros Ltd
14/12/2017,Children Adult & Health,Brake Bros Ltd,110.61,School dinners,Purchase Brake Bros Ltd
14/12/2017,Children Adult & Health,Brake Bros Ltd,112.42,School dinners,Purchase Brake Bros Ltd
14/12/2017,Children Adult & Health,Brake Bros Ltd,117.30,School dinners,Purchase Brake Bros Ltd
14/12/2017,Children Adult & Health,Brake Bros Ltd,118.63,School dinners,Purchase Brake Bros Ltd
14/12/2017,Children Adult & Health,Brake Bros Ltd,119.75,School dinners,Purchase Brake Bros Ltd
14/12/2017,Children Adult & Health,Brake Bros Ltd,121.49,School dinners,Purchase Brake Bros Ltd
14/12/2017,Children Adult & Health,Brake Bros Ltd,126.41,School dinners,Purchase Brake Bros Ltd
14/12/2017,Children Adult & Health,Brake Bros Ltd,129.11,School dinners,Purchase Brake Bros Ltd
14/12/2017,Children Adult & Health,Brake Bros Ltd,137.48,School dinners,Purchase Brake Bros Ltd
14/12/2017,Children Adult & Health,Brake Bros Ltd,152.97,School dinners,Purchase Brake Bros Ltd
14/12/2017,Environment & Community Services,Www.Apea.Org.Uk,175.00,Supplies and Services,Purchase Www.Apea.Org.Uk
14/12/2017,Children Adult & Health,Brake Bros Ltd,176.30,School dinners,Purchase Brake Bros Ltd
14/12/2017,Children Adult & Health,Brake Bros Ltd,190.93,School dinners,Purchase Brake Bros Ltd
14/12/2017,Children Adult & Health,Brake Bros Ltd,246.49,School dinners,Purchase Brake Bros Ltd
14/12/2017,Children Adult & Health,Brake Bros Ltd,569.70,School dinners,Purchase Brake Bros Ltd
15/12/2017,Children Adult & Health,Brake Bros Ltd,-32.18,School dinners,Credit Voucher Brake Bros Ltd
15/12/2017,Children Adult & Health,Www.Argos.Co.Uk,-17.99,0,Credit Voucher Www.Argos.Co.Uk
15/12/2017,Children Adult & Health,Www.Argos.Co.Uk,-17.99,0,Credit Voucher Www.Argos.Co.Uk
15/12/2017,Children Adult & Health,Asda Home Shopping,0.50,Credit Card Charges,Purchase Asda Home Shopping
15/12/2017,Chief Executive & Corporate Resources,Banner Group Ltd,1.89,Stationery,Purchase Banner Group Ltd
15/12/2017,Children Adult & Health,Tesco Store 2136,2.50,0,Purchase Tesco Store 2136
15/12/2017,Environment & Community Services,Amazon Svcs Eu-Uk Amazon.,5.25,0,Purchase Amazon Svcs Eu-Uk Amazon.
15/12/2017,Chief Executive & Corporate Resources,Banner Group Ltd,4.82,Stationery,Purchase Banner Group Ltd
15/12/2017,Chief Executive & Corporate Resources,Banner Group Ltd,5.02,Stationery,Purchase Banner Group Ltd
15/12/2017,Children Adult & Health,Ee Top Up Vesta,10.00,Supplies and Services,Purchase Ee Top Up Vesta
15/12/2017,Chief Executive & Corporate Resources,Banner Group Ltd,8.88,Stationery,Purchase Banner Group Ltd
15/12/2017,Chief Executive & Corporate Resources,Banner Group Ltd,9.36,Stationery,Purchase Banner Group Ltd
15/12/2017,Children Adult & Health,McDonalds,11.86,Supplies and Services,Purchase McDonalds
15/12/2017,Chief Executive & Corporate Resources,Banner Group Ltd,12.83,Stationery,Purchase Banner Group Ltd
15/12/2017,Children Adult & Health,Amazon UK Retail,15.94,0,Purchase Amazon UK Retail
15/12/2017,Chief Executive & Corporate Resources,B & Q 1022,13.60,Supplies and Services,Purchase B & Q 1022
15/12/2017,Chief Executive & Corporate Resources,Banner Group Ltd,13.80,Stationery,Purchase Banner Group Ltd
15/12/2017,Chief Executive & Corporate Resources,Banner Group Ltd,15.04,Stationery,Purchase Banner Group Ltd
15/12/2017,Children Adult & Health,Tesco Stores 3471,19.50,Credit Card Charges,Purchase Tesco Stores 3471
15/12/2017,Children Adult & Health,Martin Mccolls,20.00,0,Purchase Martin McColls
15/12/2017,Children Adults & Health,Tesco Stores 5976,23.00,supplies and Services,Purchase Tesco Stores 5976
15/12/2017,Children Adults & Health,Better Food,24.55,supplies and Services,Purchase Better Food
15/12/2017,Chief Executive & Corporate Resources,Banner Group Ltd,21.45,Stationery,Purchase Banner Group Ltd
15/12/2017,Children Adults & Health,Tesco Stores-2136,26.49,supplies and Services,Purchase Tesco Stores-2136
15/12/2017,Chief Executive & Corporate Resources,Banner Group Ltd,22.31,Stationery,Purchase Banner Group Ltd
15/12/2017,Children Adult & Health,Asda Stores 4777,31.88,Supplies and Services,Purchase Asda Stores 4777
15/12/2017,Children Adults & Health,Tesco Stores-2136,34.32,0,Purchase Tesco Stores-2136
15/12/2017,Children Adult & Health,Asda Stores 4777,35.19,Supplies and Services,Purchase Asda Stores 4777
15/12/2017,Environment & Community Services,Screwfix Direct,39.78,Street Care - Buildings Maintenance,Purchase Screwfix Direct
15/12/2017,Children Adult & Health,Brake Bros Ltd,44.88,School dinners,Purchase Brake Bros Ltd
15/12/2017,Chief Executive & Corporate Resources,Www.Neccontract.Com,45.10,Supplies and Services,Purchase Www.Neccontract.Com
15/12/2017,Chief Executive & Corporate Resources,Www.Voucherexpress.Co.,52.00,0,Purchase Www.Voucherexpress.Co.
15/12/2017,Environment & Community Services,Www.Toolstoday.Co.Uk,62.94,0,Purchase Www.Toolstoday.Co.Uk
15/12/2017,Children Adults & Health,High Street Off Li 14386,66.50,supplies and Services,Purchase High Street Off Li 14386
15/12/2017,Chief Executive & Corporate Resources,Www.Johnlewis.Com,79.96,0,Purchase Www.Johnlewis.Com
15/12/2017,Children Adult & Health,Currys Superstore,69.16,0,Purchase Currys Superstore
15/12/2017,Environment & Community Services,Ezi Klamp Systems Ltd,85.93,0,Purchase Ezi Klamp Systems Ltd
15/12/2017,Children Adult & Health,Tesco Stores 6420,92.00,Supplies and Services,Purchase Tesco Stores 6420
15/12/2017,Children Adult & Health,Brake Bros Ltd,100.84,School dinners,Purchase Brake Bros Ltd
15/12/2017,Children Adult & Health,Brake Bros Ltd,112.46,School dinners,Purchase Brake Bros Ltd
15/12/2017,Children Adult & Health,Brake Bros Ltd,142.64,School dinners,Purchase Brake Bros Ltd
15/12/2017,Children Adult & Health,Tesco Stores 6420,145.66,Credit Card Charges,Purchase Tesco Stores 6420
15/12/2017,Children Adult & Health,Brake Bros Ltd,161.10,School dinners,Purchase Brake Bros Ltd
15/12/2017,Children Adult & Health,Asda Home Shopping,176.67,Credit Card Charges,Purchase Asda Home Shopping
15/12/2017,Children Adults & Health,Tesco Store 2136,180.00,0,Purchase Tesco Store 2136
15/12/2017,Children Adult & Health,Currys Online,189.98,Supplies and Services,Purchase Currys Online
15/12/2017,Children Adult & Health,Brake Bros Ltd,197.50,School dinners,Purchase Brake Bros Ltd
15/12/2017,Children Adult & Health,Brake Bros Ltd,205.38,School dinners,Purchase Brake Bros Ltd
15/12/2017,Children Adult & Health,Post Office Counter,280.00,Supplies and Services,Purchase Post Office Counter
15/12/2017,Children Adult & Health,The Carpet Barn,300.00,Supplies and Services,Purchase The Carpet Barn
15/12/2017,Children Adult & Health,Currys Superstore,340.01,Supplies and Services,Purchase Currys Superstore
16/12/2017,Children Adult & Health,Amazon UK Marketplace,2.49,0,Purchase Amazon UK Marketplace
16/12/2017,Children Adult & Health,Amazon UK Marketplace,7.94,0,Purchase Amazon UK Marketplace
16/12/2017,Chief Executive & Corporate Resources,Amazon UK Retail,9.33,Supplies and Services,Purchase Amazon UK Retail
16/12/2017,Children Adult & Health,Amazon Svcs Eu-Uk Amazon.,31.96,Credit Card Charges,Purchase Amazon Svcs Eu-Uk Amazon.
16/12/2017,Children Adult & Health,Marks&spencer Plc Saca,59.55,0,Purchase Marks&spencer Plc Saca
17/12/2017,Chief Executive & Corporate Resources,W M Morrisons Plc,1.10,0,Purchase W M Morrisons Plc
17/12/2017,Children Adult & Health,Asda Home Shopping,5.00,Credit Card Charges,Purchase Asda Home Shopping
17/12/2017,Children Adult & Health,Amazon UK Marketplace,5.99,0,Purchase Amazon UK Marketplace
17/12/2017,Children Adult & Health,Poundworld Retail,6.00,Supplies and Services,Purchase Poundworld Retail
17/12/2017,Children Adult & Health,Amazon UK Retail,27.68,0,Purchase Amazon UK Retail
17/12/2017,Children Adults & Health,Jd Sports Plc,50.00,0,Purchase Jd Sports Plc
17/12/2017,Chief Executive & Corporate Resources,Amazon UK Retail,78.98,Supplies and Services,Purchase Amazon UK Retail
18/12/2017,Chief Executive & Corporate Resources,Banner Group Ltd,1.60,Stationery,Purchase Banner Group Ltd
18/12/2017,Children Adult & Health,Columbus Trainline,2.00,Supplies and Services,Purchase Columbus Trainline
18/12/2017,Children Adult & Health,McDonalds,2.69,Supplies and Services,Purchase McDonalds
18/12/2017,Children Adult & Health,Poundstretcher 576,5.78,0,Purchase Poundstretcher 576
18/12/2017,Chief Executive & Corporate Resources,Banner Group Ltd,4.89,Stationery,Purchase Banner Group Ltd
18/12/2017,Environment & Community Services,B & Q 1022,5.84,Street Care - Buildings Maintenance,Purchase B & Q 1022
18/12/2017,Children Adult & Health,Lidl Uk,8.13,Supplies and Services,Purchase Lidl Uk
18/12/2017,Children Adult & Health,Martin Mccolls,10.00,Supplies and Services,Purchase Martin McColls
18/12/2017,Environment & Community Services,B & Q 1280,8.40,Supplies and Services,Purchase B & Q 1280
18/12/2017,Children Adult & Health,Tfl Cc Auto Pay,10.50,Credit Card Charges,Purchase Tfl Cc Auto Pay
18/12/2017,Chief Executive & Corporate Resources,Banner Group Ltd,9.78,Stationery,Purchase Banner Group Ltd
18/12/2017,Children Adults & Health,John Lewis,12.80,supplies and Services,Purchase John Lewis
18/12/2017,Chief Executive & Corporate Resources,Amazon Svcs Eu-Uk Amazon.,13.90,0,Purchase Amazon Svcs Eu-Uk Amazon.
18/12/2017,Children Adults & Health,Next Bristol (Cribbs),16.00,supplies and Services,Purchase Next Bristol (Cribbs)
18/12/2017,Children Adults & Health,Boots 2089,18.07,supplies and Services,Purchase Boots 2089
18/12/2017,Children Adult & Health,River Island 374,20.00,Supplies and Services,Purchase River Island 374
18/12/2017,Children Adults & Health,Vue Bsl Ltd,20.00,supplies and Services,Purchase Vue Bsl Ltd
18/12/2017,Children Adult & Health,Next 0279 Longwell Gre,20.00,Supplies and Services,Purchase Next 0279 Longwell Gre
18/12/2017,Chief Executive & Corporate Resources,Amazon UK Marketplace,21.00,Supplies and Services,Purchase Amazon UK Marketplace
18/12/2017,Environment & Community Services,Screwfix Direct Lt,23.99,0,Purchase Screwfix Direct Lt
18/12/2017,Children Adults & Health,Poundland Ltd 1769,28.30,supplies and Services,Purchase Poundland Ltd 1769
18/12/2017,Chief Executive & Corporate Resources,Gwr Websales,32.20,Credit Card Charges,Purchase Gwr Websales
18/12/2017,Chief Executive & Corporate Resources,Banner Group Ltd,28.23,Stationery,Purchase Banner Group Ltd
18/12/2017,Chief Executive & Corporate Resources,Banner Group Ltd,28.49,Stationery,Purchase Banner Group Ltd
18/12/2017,Children Adult & Health,Tesco Stores 6420,38.33,Supplies and Services,Purchase Tesco Stores 6420
18/12/2017,Children Adult & Health,Amazon UK Retail,39.98,0,Purchase Amazon UK Retail
18/12/2017,Environment & Community Services,Tesco Stores 5652,40.98,Credit Card Charges,Purchase Tesco Stores 5652
18/12/2017,Children Adult & Health,Asda Superstore,47.53,Supplies and Services,Purchase Asda Superstore
18/12/2017,Children Adults & Health,Spar Patchway (Br0776),49.03,supplies and Services,Purchase Spar Patchway (Br0776)
18/12/2017,Chief Executive & Corporate Resources,Banner Group Ltd,60.88,Stationery,Purchase Banner Group Ltd
18/12/2017,Children Adults & Health,Asda Stores 4777,79.00,supplies and Services,Purchase Asda Stores 4777
18/12/2017,Children Adults & Health,Www.Nasen.Org.Uk,99.00,Supplies and Services,Purchase Www.Nasen.Org.Uk
18/12/2017,Children Adult & Health,Trainline,111.08,Supplies and Services,Purchase Trainline
18/12/2017,Children Adult & Health,Brake Bros Ltd,116.26,School dinners,Purchase Brake Bros Ltd
18/12/2017,Children Adult & Health,Tesco Store 3299,117.10,Supplies and Services,Purchase Tesco Store 3299
18/12/2017,Chief Executive & Corporate Resources,Amazon Svcs Eu-Uk Amazon.,131.76,0,Purchase Amazon Svcs Eu-Uk Amazon.
18/12/2017,Children Adult & Health,Easyjet,139.70,Supplies and Services,Purchase Easyjet
18/12/2017,Children Adult & Health,Amazon UK Retail,167.50,Credit Card Charges,Purchase Amazon UK Retail
18/12/2017,Children Adult & Health,Post Office Counter,167.76,Supplies and Services,Purchase Post Office Counter
18/12/2017,Chief Executive & Corporate Resources,Www.Johnlewis.Com,169.98,0,Purchase Www.Johnlewis.Com
18/12/2017,Children Adult & Health,Www.Gl-Education.C,232.78,0,Purchase Www.Gl-Education.C
18/12/2017,Chief Executive & Corporate Resources,Opp Ltd Sterling Web,321.00,Supplies and Services,Purchase Opp Ltd Sterling Web
18/12/2017,Environment & Community Services,Cns Power Tools Lt,373.20,Supplies and Services,Purchase Cns Power Tools Lt
18/12/2017,Chief Executive & Corporate Resources,Www.Linitx.Com,470.40,0,Purchase Www.Linitx.Com
19/12/2017,Chief Executive & Corporate Resources,Banner Group Ltd,-2.30,Stationery,Credit Voucher Banner Group Ltd
19/12/2017,Chief Executive & Corporate Resources,Banner Group Ltd,1.64,Stationery,Purchase Banner Group Ltd
19/12/2017,Environment & Community Services,Bristol City Council,5.70,Credit Card Charges,Purchase Bristol City Council
19/12/2017,Children Adults & Health,Sainsburys S/mkt,6.00,0,Purchase Sainsburys S/Mkt
19/12/2017,Children Adult & Health,Post Office Counter,6.45,Supplies and Services,Purchase Post Office Counter
19/12/2017,Chief Executive & Corporate Resources,Banner Group Ltd,5.52,Stationery,Purchase Banner Group Ltd
19/12/2017,Children Adult & Health,Giffgaff,10.00,Supplies and Services,Purchase Giffgaff
19/12/2017,Children Adults & Health,Argos Bristol East,11.99,0,Purchase Argos Bristol East
19/12/2017,Environment & Community Services,Amazon Eu Amazon.Co.Uk,12.99,Supplies and Services,Purchase Amazon Eu Amazon.Co.Uk
19/12/2017,Children Adult & Health,Costa Coffee 43035040,13.00,Supplies and Services,Purchase Costa Coffee 43035040
19/12/2017,Children Adult & Health,Kn Office Supplies,15.67,Supplies and Services,Purchase Kn Office Supplies
19/12/2017,Chief Executive & Corporate Resources,B & Q 1081,16.19,Supplies and Services,Purchase B & Q 1081
19/12/2017,Children Adult & Health,The Nylon Shop Kingswood,20.00,Supplies and Services,Purchase The Nylon Shop Kingswood
19/12/2017,Children Adult & Health,Amazon Svcs Eu-Uk Amazon.,24.88,Credit Card Charges,Purchase Amazon Svcs Eu-Uk Amazon.
19/12/2017,Environment & Community Services,Wickes,25.19,Supplies and Services,Purchase Wickes
19/12/2017,Children Adult & Health,Gro Hm Passport Office,29.85,Supplies and Services,Purchase Gro Hm Passport Office
19/12/2017,Chief Executive & Corporate Resources,Banner Group Ltd,24.96,Stationery,Purchase Banner Group Ltd
19/12/2017,Chief Executive & Corporate Resources,Amazon Svcs Eu-Uk Amazon.,30.94,0,Purchase Amazon Svcs Eu-Uk Amazon.
19/12/2017,Children Adult & Health,Sainsburys S/Mkt,35.25,Credit Card Charges,Purchase Sainsburys S/Mkt
19/12/2017,Children Adult & Health,Prezzo,35.40,Supplies and Services,Purchase Prezzo
19/12/2017,Children Adult & Health,Martin Mccolls,40.00,Supplies and Services,Purchase Martin McColls
19/12/2017,Environment & Community Services,B & Q 1280,35.00,Supplies and Services,Purchase B & Q 1280
19/12/2017,Children Adult & Health,Amazon UK Marketplace,47.34,Credit Card Charges,Purchase Amazon UK Marketplace
19/12/2017,Environment & Community Services,B & Q 1022,41.70,Street Care - Buildings Maintenance,Purchase B & Q 1022
19/12/2017,Chief Executive & Corporate Resources,Amazon UK Retail,64.50,0,Purchase Amazon UK Retail
19/12/2017,Children Adult & Health,Co-Op Group 070479,66.00,Supplies and Services,Purchase Co-Op Group 070479
19/12/2017,Environment & Community Services,Amazon UK Retail,69.94,Supplies and Services,Purchase Amazon UK Retail
19/12/2017,Children Adult & Health,W M Morrisons Plc,73.98,Supplies and Services,Purchase W M Morrisons Plc
19/12/2017,Chief Executive & Corporate Resources,Amazon Svcs Eu-Uk Amazon.,87.84,0,Purchase Amazon Svcs Eu-Uk Amazon.
19/12/2017,Children Adult & Health,Elsa Network,100.00,Supplies and Services,Purchase Elsa Network
19/12/2017,Children Adult & Health,Screwfix Direct,123.48,Credit Card Charges,Purchase Screwfix Direct
19/12/2017,Children Adult & Health,Brake Bros Ltd,129.61,School dinners,Purchase Brake Bros Ltd
19/12/2017,Children Adult & Health,Tesco Stores 6420,141.32,Credit Card Charges,Purchase Tesco Stores 6420
19/12/2017,Environment & Community Services,Wfm,175.00,Supplies and Services,Purchase Wfm
19/12/2017,Chief Executive & Corporate Resources,Banner Group Ltd,147.30,Stationery,Purchase Banner Group Ltd
19/12/2017,Chief Executive & Corporate Resources,Amazon Svcs Eu-Uk Amazon.,311.76,0,Purchase Amazon Svcs Eu-Uk Amazon.
19/12/2017,Chief Executive & Corporate Resources,Www.Johnlewis.Com,494.10,0,Purchase Www.Johnlewis.Com
19/12/2017,Environment & Community Services,Love2shop.Co.Uk,506.45,Supplies and Services,Purchase Love2shop.Co.Uk
19/12/2017,Chief Executive & Corporate Resources,Suk Retail Ltd,1104.80,Credit Card Charges,Purchase Suk Retail Ltd
20/12/2017,Environment & Community Services,B & Q 1022,-5.84,Street Care - Buildings Maintenance,Credit Voucher B & Q 1022
20/12/2017,Chief Executive & Corporate Resources,Banner Group Ltd,0.08,Stationery,Purchase Banner Group Ltd
20/12/2017,Chief Executive & Corporate Resources,Banner Group Ltd,0.18,Stationery,Purchase Banner Group Ltd
20/12/2017,Chief Executive & Corporate Resources,Amazon Svcs Eu-Uk Amazon.,1.59,0,Purchase Amazon Svcs Eu-Uk Amazon.
20/12/2017,Children Adult & Health,Br Restaurant,2.00,Supplies and Services,Purchase Br Restaurant
20/12/2017,Children Adult & Health,Tesco Stores 5085,3.00,Supplies and Services,Purchase Tesco Stores 5085
20/12/2017,Children Adult & Health,Hill Street Stores 663,4.75,Supplies and Services,Purchase Hill Street Stores 663
20/12/2017,Chief Executive & Corporate Resources,Banner Group Ltd,4.16,Stationery,Purchase Banner Group Ltd
20/12/2017,Chief Executive & Corporate Resources,Banner Group Ltd,4.78,Stationery,Purchase Banner Group Ltd
20/12/2017,Children Adults & Health,Post Office Counter,7.00,supplies and Services,Purchase Post Office Counter
20/12/2017,Children Adult & Health,McDonalds,7.68,Supplies and Services,Purchase McDonalds
20/12/2017,Children Adult & Health,McDonalds,9.17,Supplies and Services,Purchase McDonalds
20/12/2017,Chief Executive & Corporate Resources,B & Q 1081,10.00,Supplies and Services,Purchase B & Q 1081
20/12/2017,Chief Executive & Corporate Resources,Banner Group Ltd,10.99,Stationery,Purchase Banner Group Ltd
20/12/2017,Children Adult & Health,Costa Coffee,14.30,Supplies and Services,Purchase Costa Coffee
20/12/2017,Environment & Community Services,Talbot-Owen Ltd,14.33,0,Purchase Talbot-Owen Ltd
20/12/2017,Children Adult & Health,Cost Cutter,17.50,Supplies and Services,Purchase Cost Cutter
20/12/2017,Environment & Community Services,Screwfix Direct,19.47,Credit Card Charges,Purchase Screwfix Direct
20/12/2017,Children Adult & Health,Tesco Stores 6780,20.00,Supplies and Services,Purchase Tesco Stores 6780
20/12/2017,Children Adult & Health,River Island 262,20.00,Supplies and Services,Purchase River Island 262
20/12/2017,Children Adult & Health,Tesco Stores 5652,20.00,0,Purchase Tesco Stores 5652
20/12/2017,Children Adult & Health,River Island 374,22.00,Supplies and Services,Purchase River Island 374
20/12/2017,Environment & Community Services,Shropshire Stainless And,24.00,0,Purchase Shropshire Stainless And
20/12/2017,Children Adult & Health,Hill Street Stores 663,24.55,Supplies and Services,Purchase Hill Street Stores 663
20/12/2017,Children Adult & Health,Asda Stores 4379,29.00,0,Purchase Asda Stores 4379
20/12/2017,Chief Executive & Corporate Resources,Amazon Eu Amazon.Co.Uk,31.98,0,Purchase Amazon Eu Amazon.Co.Uk
20/12/2017,Environment & Community Services,Amazon UK Marketplace,33.90,Credit Card Charges,Purchase Amazon UK Marketplace
20/12/2017,Children Adult & Health,Tesco Stores-2136,35.00,0,Purchase Tesco Stores-2136
20/12/2017,Children Adult & Health,Tesco Stores 5652,41.00,Supplies and Services,Purchase Tesco Stores 5652
20/12/2017,Children Adult & Health,Amazon Svcs Eu-Uk Amazon.,49.75,Credit Card Charges,Purchase Amazon Svcs Eu-Uk Amazon.
20/12/2017,Chief Executive & Corporate Resources,Banner Group Ltd,41.60,Stationery,Purchase Banner Group Ltd
20/12/2017,Chief Executive & Corporate Resources,Banner Group Ltd,43.70,Stationery,Purchase Banner Group Ltd
20/12/2017,Children Adults & Health,Post Office Counter,60.00,supplies and Services,Purchase Post Office Counter
20/12/2017,Environment & Community Services,Hmcourts-Service.G,60.00,Supplies and Services,Purchase Hmcourts-Service.G
20/12/2017,Children Adult & Health,97ex56892 Eurotaxis Lt,61.48,0,Purchase 97ex56892 Eurotaxis Lt
20/12/2017,Chief Executive & Corporate Resources,Milton Hill Recept,85.00,Supplies and Services,Purchase Milton Hill Recept
20/12/2017,Children Adult & Health,Amazon UK Marketplace,87.80,0,Purchase Amazon UK Marketplace
20/12/2017,Children Adult & Health,Cross Country Trains,91.40,Supplies and Services,Purchase Cross Country Trains
20/12/2017,Children Adult & Health,Www.Tts-Groups.Co.Uk,124.67,0,Purchase Www.Tts-Groups.Co.Uk
20/12/2017,Children Adult & Health,Brake Bros Ltd,146.24,School dinners,Purchase Brake Bros Ltd
20/12/2017,Children Adult & Health,Www.Asos.Com,150.95,Credit Card Charges,Purchase Www.Asos.Com
20/12/2017,Environment & Community Services,Cartridge Save,153.53,Supplies and Services,Purchase Cartridge Save
20/12/2017,Children Adult & Health,Brake Bros Ltd,156.95,School dinners,Purchase Brake Bros Ltd
20/12/2017,Environment & Community Services,Cartridge Save,210.64,Supplies and Services,Purchase Cartridge Save
20/12/2017,Environment & Community Services,Amazon Eu Amazon.Co.Uk,299.00,0,Purchase Amazon Eu Amazon.Co.Uk
20/12/2017,Children Adult & Health,Tesco Stores 5652,300.00,0,Purchase Tesco Stores 5652
20/12/2017,Children Adult & Health,Trainline,316.66,Supplies and Services,Purchase Trainline
20/12/2017,Children Adult & Health,Brake Bros Ltd,324.25,School dinners,Purchase Brake Bros Ltd
21/12/2017,Chief Executive & Corporate Resources,Suk Retail Ltd,-34.16,Credit Card Charges,Credit Voucher Suk Retail Ltd
21/12/2017,Chief Executive & Corporate Resources,Amz*gift And Baby,-21.00,Supplies and Services,Credit Voucher Amz*gift And Baby
21/12/2017,Children Adult & Health,Asda Home Shopping,-0.50,Credit Card Charges,Credit Voucher Asda Home Shopping
21/12/2017,Children Adult & Health,Tesco Stores 6420,2.10,Supplies and Services,Purchase Tesco Stores 6420
21/12/2017,Environment & Community Services,Apcoa Connect - Fgw,2.20,Credit Card Charges,Purchase Apcoa Connect - Fgw
21/12/2017,Chief Executive & Corporate Resources,Banner Group Ltd,1.99,Stationery,Purchase Banner Group Ltd
21/12/2017,Environment & Community Services,Hawkins Of Thornbury,3.75,Supplies and Services,Purchase Hawkins Of Thornbury
21/12/2017,Children Adult & Health,Iceland,6.00,Supplies and Services,Purchase Iceland
21/12/2017,Chief Executive & Corporate Resources,Banner Group Ltd,5.00,Stationery,Purchase Banner Group Ltd
21/12/2017,Environment & Community Services,Gwr Gloucester Gate,6.10,Credit Card Charges,Purchase Gwr Gloucester Gate
21/12/2017,Children Adult & Health,John Sheppard Butchers,6.42,School dinners,Purchase John Sheppard Butchers
21/12/2017,Environment & Community Services,Screwfix Direct,7.20,Supplies and Services,Purchase Screwfix Direct
21/12/2017,Children Adult & Health,Post Office Counter,7.80,Supplies and Services,Purchase Post Office Counter
21/12/2017,Children Adult & Health,Www.Livefoods.Co.U,7.83,Credit Card Charges,Purchase Www.Livefoods.Co.U
21/12/2017,Children Adult & Health,John Sheppard Butchers,8.62,School dinners,Purchase John Sheppard Butchers
21/12/2017,Chief Executive & Corporate Resources,Banner Group Ltd,8.28,Stationery,Purchase Banner Group Ltd
21/12/2017,Children Adult & Health,Co-Op Group 160987,10.32,Supplies and Services,Purchase Co-Op Group 160987
21/12/2017,Children Adult & Health,Asda Superstore 04315,12.95,Supplies and Services,Purchase Asda Superstore 04315
21/12/2017,Environment & Community Services,Amazon UK Marketplace,12.99,Supplies and Services,Purchase Amazon UK Marketplace
21/12/2017,Children Adult & Health,John Sheppard Butchers,14.53,School dinners,Purchase John Sheppard Butchers
21/12/2017,Children Adult & Health,John Sheppard Butchers,15.66,School dinners,Purchase John Sheppard Butchers
21/12/2017,Children Adult & Health,Nailz,20.00,Supplies and Services,Purchase Nailz
21/12/2017,Children Adult & Health,Jd Sports Plc,20.00,Supplies and Services,Purchase Jd Sports Plc
21/12/2017,Environment & Community Services,Tp Bristol Stoke G,18.00,0,Purchase Tp Bristol Stoke G
21/12/2017,Children Adult & Health,John Sheppard Butchers,23.18,School dinners,Purchase John Sheppard Butchers
21/12/2017,Children Adult & Health,Iceland,23.54,Supplies and Services,Purchase Iceland
21/12/2017,Children Adult & Health,Martin Mccolls,23.80,Supplies and Services,Purchase Martin McColls
21/12/2017,Children Adult & Health,John Sheppard Butchers,26.12,School dinners,Purchase John Sheppard Butchers
21/12/2017,Children Adults & Health,Tesco Stores 5363,26.90,supplies and Services,Purchase Tesco Stores 5363
21/12/2017,Environment & Community Services,Magnet,28.66,Street Care - Buildings Maintenance,Purchase Magnet
21/12/2017,Children Adult & Health,John Sheppard Butchers,31.24,School dinners,Purchase John Sheppard Butchers
21/12/2017,Children Adult & Health,Amazon UK Marketplace,31.35,Credit Card Charges,Purchase Amazon UK Marketplace
21/12/2017,Children Adult & Health,John Sheppard Butchers,34.06,School dinners,Purchase John Sheppard Butchers
21/12/2017,Children Adult & Health,John Sheppard Butchers,38.53,School dinners,Purchase John Sheppard Butchers
21/12/2017,Children Adult & Health,John Sheppard Butchers,38.61,School dinners,Purchase John Sheppard Butchers
21/12/2017,Chief Executive & Corporate Resources,Banner Group Ltd,32.24,Stationery,Purchase Banner Group Ltd
21/12/2017,Children Adult & Health,John Sheppard Butchers,38.76,School dinners,Purchase John Sheppard Butchers
21/12/2017,Children Adult & Health,John Sheppard Butchers,38.76,School dinners,Purchase John Sheppard Butchers
21/12/2017,Children Adult & Health,John Sheppard Butchers,38.84,School dinners,Purchase John Sheppard Butchers
21/12/2017,Children Adult & Health,John Sheppard Butchers,38.91,School dinners,Purchase John Sheppard Butchers
21/12/2017,Children Adult & Health,John Sheppard Butchers,39.14,School dinners,Purchase John Sheppard Butchers
21/12/2017,Children Adult & Health,Sainsburys S/mkt,40.00,Supplies and Services,Purchase Sainsburys S/Mkt
21/12/2017,Chief Executive & Corporate Resources,Banner Group Ltd,34.14,Stationery,Purchase Banner Group Ltd
21/12/2017,Children Adult & Health,John Sheppard Butchers,42.15,School dinners,Purchase John Sheppard Butchers
21/12/2017,Children Adult & Health,John Sheppard Butchers,42.56,School dinners,Purchase John Sheppard Butchers
21/12/2017,Children Adult & Health,John Sheppard Butchers,46.28,School dinners,Purchase John Sheppard Butchers
21/12/2017,Children Adult & Health,John Sheppard Butchers,46.36,School dinners,Purchase John Sheppard Butchers
21/12/2017,Children Adult & Health,John Sheppard Butchers,46.36,School dinners,Purchase John Sheppard Butchers
21/12/2017,Children Adult & Health,John Sheppard Butchers,46.51,School dinners,Purchase John Sheppard Butchers
21/12/2017,Children Adult & Health,John Sheppard Butchers,46.59,School dinners,Purchase John Sheppard Butchers
21/12/2017,Children Adult & Health,John Sheppard Butchers,46.82,School dinners,Purchase John Sheppard Butchers
21/12/2017,Children Adult & Health,John Sheppard Butchers,50.68,School dinners,Purchase John Sheppard Butchers
21/12/2017,Children Adult & Health,John Sheppard Butchers,53.59,School dinners,Purchase John Sheppard Butchers
21/12/2017,Children Adult & Health,John Sheppard Butchers,54.11,School dinners,Purchase John Sheppard Butchers
21/12/2017,Children Adult & Health,John Sheppard Butchers,54.49,School dinners,Purchase John Sheppard Butchers
21/12/2017,Children Adult & Health,John Sheppard Butchers,54.80,School dinners,Purchase John Sheppard Butchers
21/12/2017,Children Adult & Health,John Sheppard Butchers,55.10,School dinners,Purchase John Sheppard Butchers
21/12/2017,Environment & Community Services,Ezi Klamp Systems Ltd,59.04,Street Care - Buildings Maintenance,Purchase Ezi Klamp Systems Ltd
21/12/2017,Children Adult & Health,B & Q 1022,51.66,Supplies and Services,Purchase B & Q 1022
21/12/2017,Environment & Community Services,Amazon UK Marketplace,62.98,Supplies and Services,Purchase Amazon UK Marketplace
21/12/2017,Children Adult & Health,John Sheppard Butchers,63.44,School dinners,Purchase John Sheppard Butchers
21/12/2017,Children Adult & Health,Murray Hire Centre,65.40,Supplies and Services,Purchase Murray Hire Centre
21/12/2017,Environment & Community Services,Amazon UK Marketplace,75.96,Supplies and Services,Purchase Amazon UK Marketplace
21/12/2017,Children Adult & Health,John Sheppard Butchers,77.44,School dinners,Purchase John Sheppard Butchers
21/12/2017,Children Adult & Health,John Sheppard Butchers,81.18,School dinners,Purchase John Sheppard Butchers
21/12/2017,Children Adult & Health,John Sheppard Butchers,83.95,School dinners,Purchase John Sheppard Butchers
21/12/2017,Children Adult & Health,John Sheppard Butchers,84.17,School dinners,Purchase John Sheppard Butchers
21/12/2017,Children Adult & Health,John Sheppard Butchers,97.24,School dinners,Purchase John Sheppard Butchers
21/12/2017,Chief Executive & Corporate Resources,Banner Group Ltd,82.96,Stationery,Purchase Banner Group Ltd
21/12/2017,Children Adult & Health,John Sheppard Butchers,132.00,School dinners,Purchase John Sheppard Butchers
21/12/2017,Environment & Community Services,Eb *aafda Conference 2,145.00,Supplies and Services,Purchase Eb *aafda Conference 2
21/12/2017,Children Adult & Health,Tvlicensing.Co.Uk,147.00,Supplies and Services,Purchase Tvlicensing.Co.Uk
21/12/2017,Children Adult & Health,Asda Home Shopping,154.55,Credit Card Charges,Purchase Asda Home Shopping
21/12/2017,Chief Executive & Corporate Resources,Virgin Trains,163.70,Credit Card Charges,Purchase Virgin Trains
21/12/2017,Children Adult & Health,Brake Bros Ltd,174.67,School dinners,Purchase Brake Bros Ltd
21/12/2017,Children Adult & Health,John Sheppard Butchers,175.97,School dinners,Purchase John Sheppard Butchers
21/12/2017,Environment & Community Services,Squarespace Inc.,180.00,Supplies and Services,Purchase Squarespace Inc.
21/12/2017,Children Adult & Health,John Sheppard Butchers,193.66,School dinners,Purchase John Sheppard Butchers
21/12/2017,Children Adult & Health,Argos Ltd,195.98,Supplies and Services,Purchase Argos Ltd
21/12/2017,Children Adult & Health,Brake Bros Ltd,208.56,School dinners,Purchase Brake Bros Ltd
21/12/2017,Children Adult & Health,Cross Country Trains,213.80,Supplies and Services,Purchase Cross Country Trains
21/12/2017,Chief Executive & Corporate Resources,Uni Of West Englan,245.00,Supplies and Services,Purchase Uni Of West Englan
21/12/2017,Environment & Community Services,Bens Tiles,285.60,Credit Card Charges,Purchase Bens Tiles
21/12/2017,Children Adult & Health,Ikea Limited,498.25,0,Purchase Ikea Limited
22/12/2017,Chief Executive & Corporate Resources,Amazon UK Marketplace,6.00,Credit Card Charges,Purchase Amazon UK Marketplace
22/12/2017,Children Adult & Health,Costa Coffee 43039915,6.40,Supplies and Services,Purchase Costa Coffee 43039915
22/12/2017,Children Adult & Health,John Sheppard Butchers,6.46,School dinners,Purchase John Sheppard Butchers
22/12/2017,Chief Executive & Corporate Resources,Amazon Prime,7.99,Supplies and Services,Purchase Amazon Prime
22/12/2017,Children Adult & Health,John Sheppard Butchers,8.68,School dinners,Purchase John Sheppard Butchers
22/12/2017,Children Adult & Health,John Sheppard Butchers,9.99,School dinners,Purchase John Sheppard Butchers
22/12/2017,Children Adult & Health,W M Morrisons Plc,12.57,Supplies and Services,Purchase W M Morrisons Plc
22/12/2017,Chief Executive & Corporate Resources,Amazon UK Retail,13.82,Credit Card Charges,Purchase Amazon UK Retail
22/12/2017,Children Adult & Health,John Sheppard Butchers,16.91,School dinners,Purchase John Sheppard Butchers
22/12/2017,Environment & Community Services,Amazon UK Marketplace,19.49,Supplies and Services,Purchase Amazon UK Marketplace
22/12/2017,Children Adult & Health,John Sheppard Butchers,21.01,School dinners,Purchase John Sheppard Butchers
22/12/2017,Children Adult & Health,John Sheppard Butchers,21.58,School dinners,Purchase John Sheppard Butchers
22/12/2017,Children Adult & Health,Chiquito 2119,21.95,Supplies and Services,Purchase Chiquito 2119
22/12/2017,Children Adult & Health,John Sheppard Butchers,22.04,School dinners,Purchase John Sheppard Butchers
22/12/2017,Environment & Community Services,Amazon UK Marketplace,22.98,Supplies and Services,Purchase Amazon UK Marketplace
22/12/2017,Children Adult & Health,John Sheppard Butchers,24.51,School dinners,Purchase John Sheppard Butchers
22/12/2017,Children Adult & Health,John Sheppard Butchers,25.53,School dinners,Purchase John Sheppard Butchers
22/12/2017,Children Adult & Health,John Sheppard Butchers,26.32,School dinners,Purchase John Sheppard Butchers
22/12/2017,Children Adult & Health,John Sheppard Butchers,26.79,School dinners,Purchase John Sheppard Butchers
22/12/2017,Children Adult & Health,Bank Cafe,28.20,Supplies and Services,Purchase Bank Cafe
22/12/2017,Children Adult & Health,John Sheppard Butchers,28.39,School dinners,Purchase John Sheppard Butchers
22/12/2017,Children Adult & Health,John Sheppard Butchers,28.62,School dinners,Purchase John Sheppard Butchers
22/12/2017,Children Adult & Health,John Sheppard Butchers,28.62,School dinners,Purchase John Sheppard Butchers
22/12/2017,Children Adult & Health,John Sheppard Butchers,28.69,School dinners,Purchase John Sheppard Butchers
22/12/2017,Children Adult & Health,John Sheppard Butchers,32.78,School dinners,Purchase John Sheppard Butchers
22/12/2017,Children Adult & Health,John Sheppard Butchers,33.99,School dinners,Purchase John Sheppard Butchers
22/12/2017,Children Adult & Health,John Sheppard Butchers,34.05,School dinners,Purchase John Sheppard Butchers
22/12/2017,Children Adult & Health,John Sheppard Butchers,34.10,School dinners,Purchase John Sheppard Butchers
22/12/2017,Children Adult & Health,John Sheppard Butchers,34.97,School dinners,Purchase John Sheppard Butchers
22/12/2017,Children Adult & Health,John Sheppard Butchers,36.16,School dinners,Purchase John Sheppard Butchers
22/12/2017,Children Adult & Health,John Sheppard Butchers,36.65,School dinners,Purchase John Sheppard Butchers
22/12/2017,Children Adult & Health,John Sheppard Butchers,37.06,School dinners,Purchase John Sheppard Butchers
22/12/2017,Children Adult & Health,John Sheppard Butchers,39.41,School dinners,Purchase John Sheppard Butchers
22/12/2017,Children Adult & Health,Sportsdirect 749,40.00,Supplies and Services,Purchase Sportsdirect 749
22/12/2017,Children Adult & Health,John Sheppard Butchers,42.54,School dinners,Purchase John Sheppard Butchers
22/12/2017,Children Adults & Health,Sainsburys S/mkt,45.00,0,Purchase Sainsburys S/Mkt
22/12/2017,Children Adult & Health,John Sheppard Butchers,45.72,School dinners,Purchase John Sheppard Butchers
22/12/2017,Children Adult & Health,John Sheppard Butchers,45.75,School dinners,Purchase John Sheppard Butchers
22/12/2017,Children Adult & Health,John Sheppard Butchers,46.39,School dinners,Purchase John Sheppard Butchers
22/12/2017,Children Adult & Health,Cyclops Video,46.70,0,Purchase Cyclops Video
22/12/2017,Children Adults & Health,Shiva News,50.25,Supplies and Services,Purchase Shiva News
22/12/2017,Children Adult & Health,John Sheppard Butchers,50.85,School dinners,Purchase John Sheppard Butchers
22/12/2017,Children Adult & Health,John Sheppard Butchers,50.95,School dinners,Purchase John Sheppard Butchers
22/12/2017,Children Adult & Health,John Sheppard Butchers,52.81,School dinners,Purchase John Sheppard Butchers
22/12/2017,Children Adult & Health,John Sheppard Butchers,52.86,School dinners,Purchase John Sheppard Butchers
22/12/2017,Children Adult & Health,John Sheppard Butchers,52.90,School dinners,Purchase John Sheppard Butchers
22/12/2017,Children Adult & Health,John Sheppard Butchers,52.98,School dinners,Purchase John Sheppard Butchers
22/12/2017,Children Adult & Health,John Sheppard Butchers,53.03,School dinners,Purchase John Sheppard Butchers
22/12/2017,Children Adult & Health,John Sheppard Butchers,55.94,School dinners,Purchase John Sheppard Butchers
22/12/2017,Children Adult & Health,John Sheppard Butchers,56.33,School dinners,Purchase John Sheppard Butchers
22/12/2017,Children Adult & Health,John Sheppard Butchers,56.78,School dinners,Purchase John Sheppard Butchers
22/12/2017,Children Adult & Health,John Sheppard Butchers,57.79,School dinners,Purchase John Sheppard Butchers
22/12/2017,Children Adult & Health,John Sheppard Butchers,58.30,School dinners,Purchase John Sheppard Butchers
22/12/2017,Children Adult & Health,John Sheppard Butchers,58.65,School dinners,Purchase John Sheppard Butchers
22/12/2017,Children Adult & Health,John Sheppard Butchers,66.09,School dinners,Purchase John Sheppard Butchers
22/12/2017,Children Adult & Health,John Sheppard Butchers,72.79,School dinners,Purchase John Sheppard Butchers
22/12/2017,Children Adult & Health,John Sheppard Butchers,73.09,School dinners,Purchase John Sheppard Butchers
22/12/2017,Children Adult & Health,John Sheppard Butchers,77.04,School dinners,Purchase John Sheppard Butchers
22/12/2017,Children Adult & Health,John Sheppard Butchers,77.58,School dinners,Purchase John Sheppard Butchers
22/12/2017,Children Adult & Health,John Sheppard Butchers,79.30,School dinners,Purchase John Sheppard Butchers
22/12/2017,Children Adult & Health,John Sheppard Butchers,79.38,School dinners,Purchase John Sheppard Butchers
22/12/2017,Children Adult & Health,John Sheppard Butchers,79.43,School dinners,Purchase John Sheppard Butchers
22/12/2017,Children Adult & Health,John Sheppard Butchers,79.43,School dinners,Purchase John Sheppard Butchers
22/12/2017,Children Adult & Health,John Sheppard Butchers,79.55,School dinners,Purchase John Sheppard Butchers
22/12/2017,Children Adult & Health,John Sheppard Butchers,84.62,School dinners,Purchase John Sheppard Butchers
22/12/2017,Children Adult & Health,John Sheppard Butchers,85.57,School dinners,Purchase John Sheppard Butchers
22/12/2017,Children Adult & Health,John Sheppard Butchers,90.21,School dinners,Purchase John Sheppard Butchers
22/12/2017,Children Adult & Health,John Sheppard Butchers,94.55,School dinners,Purchase John Sheppard Butchers
22/12/2017,Children Adult & Health,John Sheppard Butchers,94.56,School dinners,Purchase John Sheppard Butchers
22/12/2017,Children Adult & Health,John Sheppard Butchers,95.47,School dinners,Purchase John Sheppard Butchers
22/12/2017,Children Adult & Health,John Sheppard Butchers,96.17,School dinners,Purchase John Sheppard Butchers
22/12/2017,Children Adult & Health,John Sheppard Butchers,99.13,School dinners,Purchase John Sheppard Butchers
22/12/2017,Children Adult & Health,John Sheppard Butchers,99.45,School dinners,Purchase John Sheppard Butchers
22/12/2017,Children Adult & Health,John Sheppard Butchers,99.76,School dinners,Purchase John Sheppard Butchers
22/12/2017,Children Adult & Health,John Sheppard Butchers,103.49,School dinners,Purchase John Sheppard Butchers
22/12/2017,Children Adult & Health,John Sheppard Butchers,103.74,School dinners,Purchase John Sheppard Butchers
22/12/2017,Children Adult & Health,John Sheppard Butchers,115.28,School dinners,Purchase John Sheppard Butchers
22/12/2017,Children Adult & Health,John Sheppard Butchers,115.55,School dinners,Purchase John Sheppard Butchers
22/12/2017,Children Adult & Health,John Sheppard Butchers,121.30,School dinners,Purchase John Sheppard Butchers
22/12/2017,Children Adult & Health,John Sheppard Butchers,122.54,School dinners,Purchase John Sheppard Butchers
22/12/2017,Children Adult & Health,John Sheppard Butchers,123.92,School dinners,Purchase John Sheppard Butchers
22/12/2017,Children Adult & Health,John Sheppard Butchers,124.15,School dinners,Purchase John Sheppard Butchers
22/12/2017,Children Adult & Health,John Sheppard Butchers,124.19,School dinners,Purchase John Sheppard Butchers
22/12/2017,Children Adult & Health,John Sheppard Butchers,124.63,School dinners,Purchase John Sheppard Butchers
22/12/2017,Children Adult & Health,John Sheppard Butchers,124.75,School dinners,Purchase John Sheppard Butchers
22/12/2017,Children Adult & Health,John Sheppard Butchers,126.47,School dinners,Purchase John Sheppard Butchers
22/12/2017,Children Adult & Health,Trainline,134.54,0,Purchase Trainline
22/12/2017,Children Adult & Health,John Sheppard Butchers,143.75,School dinners,Purchase John Sheppard Butchers
22/12/2017,Environment & Community Services,Stone Computers,148.50,Supplies and Services,Purchase Stone Computers
22/12/2017,Environment & Community Services,Stone Computers,148.50,Supplies and Services,Purchase Stone Computers
22/12/2017,Children Adult & Health,John Sheppard Butchers,149.63,School dinners,Purchase John Sheppard Butchers
22/12/2017,Children Adult & Health,John Sheppard Butchers,150.98,School dinners,Purchase John Sheppard Butchers
22/12/2017,Environment & Community Services,Dnh*godaddy.Com Europe,158.36,Credit Card Charges,Purchase Dnh*godaddy.Com Europe
22/12/2017,Children Adult & Health,John Sheppard Butchers,178.69,School dinners,Purchase John Sheppard Butchers
22/12/2017,Children Adult & Health,Carpets Direct,180.00,Supplies and Services,Purchase Carpets Direct
22/12/2017,Children Adult & Health,John Sheppard Butchers,185.82,School dinners,Purchase John Sheppard Butchers
22/12/2017,Children Adult & Health,John Sheppard Butchers,191.77,School dinners,Purchase John Sheppard Butchers
22/12/2017,Children Adult & Health,John Sheppard Butchers,193.41,School dinners,Purchase John Sheppard Butchers
22/12/2017,Children Adult & Health,Cross Country Trains,219.10,Supplies and Services,Purchase Cross Country Trains
22/12/2017,Children Adult & Health,John Sheppard Butchers,232.77,School dinners,Purchase John Sheppard Butchers
22/12/2017,Children Adult & Health,Merlin Hs Rent/srv Chg,615.70,Supplies and Services,Purchase Merlin Hs Rent/Srv Chg
22/12/2017,Children Adult & Health,Carpets Direct,1000.00,Supplies and Services,Purchase Carpets Direct
22/12/2017,Environment & Community Services,Sj Electronics Ltd,1836.00,Credit Card Charges,Purchase Sj Electronics Ltd
23/12/2017,Children Adult & Health,Amazon UK Retail,11.27,0,Purchase Amazon UK Retail
23/12/2017,Chief Executive & Corporate Resources,Amazon UK Marketplace,21.00,Supplies and Services,Purchase Amazon UK Marketplace
23/12/2017,Children Adult & Health,Tesco Stores 5652,40.00,0,Purchase Tesco Stores 5652
24/12/2017,Children Adults & Health,Amazon Prime,7.99,Supplies and Services,Purchase Amazon Prime
24/12/2017,Children Adult & Health,Original Factory S,12.00,Supplies and Services,Purchase Original Factory S
24/12/2017,Children Adult & Health,B&m Retail,12.98,Supplies and Services,Purchase B&m Retail
24/12/2017,Children Adult & Health,Www.Mountpleasanthotel,140.40,0,Purchase Www.Mountpleasanthotel
27/12/2017,Children Adult & Health,Calendar Club Ltd,4.79,Supplies and Services,Purchase Calendar Club Ltd
27/12/2017,Children Adult & Health,Amazon UK Marketplace,11.84,Supplies and Services,Purchase Amazon UK Marketplace
27/12/2017,Children Adult & Health,Hotel On Booking.Com,39.00,Supplies and Services,Purchase Hotel On Booking.Com
27/12/2017,Children Adult & Health,Argos Ltd,87.89,Supplies and Services,Purchase Argos Ltd
27/12/2017,Children Adult & Health,Brake Bros Ltd,225.83,School dinners,Purchase Brake Bros Ltd
27/12/2017,Children Adult & Health,Spar Patchway (Br0776),259.20,Supplies and Services,Purchase Spar Patchway (Br0776)
